Body Name,Body,Service Division Label,Service Division Code,Organisational Unit,Expenditure Category,Expenditure Code,CIPFA detailed expediture type,CIPFA detailed expediture code,Narrative,Date,Transaction number,Net Amount,Capital and Revenue,Supplier Name,Supplier ID
Chorley Borough Council,http://statistics.data.gov.uk/id/local-authority/30UE,Capital,Capital,Housing,Grants,3002,Capital Expenditure,Capital,Capital Works - Diasbled Facility Grant,30/08/2013,90575,"3,129.00",Capital,Accessible Bathroom Solutions Ltd,58149
Chorley Borough Council,http://statistics.data.gov.uk/id/local-authority/30UE,Democratic Represent and  Mgnt,1007,Streetscene & Leisure Contracts,External Contractor - Trust or Charity,50008,Private Contractors,5042,Aug-13,07/08/2013,90120,"33,416.25",Revenue,Active Nation UK Ltd,17144
Chorley Borough Council,http://statistics.data.gov.uk/id/local-authority/30UE,Elections,1012,Governance,Rent/Hire Of Premises,20017,Premises Rents,5007,Room Hire for LCC Elections 2013,30/08/2013,90216,450.00,Revenue,Active Nation UK Ltd,17144
Chorley Borough Council,http://statistics.data.gov.uk/id/local-authority/30UE,Democratic Represent and  Mgnt,1007,Streetscene & Leisure Contracts,Miscellaneous Expenses,40200,Miscellaneous Expenses,5034,Funding for free swimming offer at All Seasons Leisure Centre and Brinscall Baths.Summer Holidays 2013 ,30/08/2013,90552,"7,500.00",Revenue,Active Nation UK Ltd,17144
Chorley Borough Council,http://statistics.data.gov.uk/id/local-authority/30UE,Central Support Services,1009,Streetscene & Leisure Contracts,Burglar Alarms & Security Systems,20075,Fixtures and Fittings,5010,Payment for alarm systems at Bengal St depot,16/08/2013,90238,264.96,Revenue,ADT Fire & Security,16645
Chorley Borough Council,http://statistics.data.gov.uk/id/local-authority/30UE,Unapportionable Central OHeads,1009,Streetscene & Leisure Contracts,Burglar Alarms & Security Systems,20075,Fixtures and Fittings,5010,Payment for alarm systems at Bengal St depot,16/08/2013,90242,"2,213.69",Revenue,ADT Fire & Security,16645
Chorley Borough Council,http://statistics.data.gov.uk/id/local-authority/30UE,Central Support Services,1009,Streetscene & Leisure Contracts,Burglar Alarms & Security Systems,20075,Fixtures and Fittings,5010,Payment for alarm systems at Bengal St depot,16/08/2013,90244,427.35,Revenue,ADT Fire & Security,16645
Chorley Borough Council,http://statistics.data.gov.uk/id/local-authority/30UE,Capital,Capital,Housing,Grants,3002,Capital Expenditure,Capital,Capital works - Disabled Facility Grant,30/08/2013,90541,"4,495.00",Capital,AJS Joinery and Building Contractor,18195
Chorley Borough Council,http://statistics.data.gov.uk/id/local-authority/30UE,Service Management & Support,1009,Streetscene & Leisure Contracts,Grounds Maintenance Contractor,20043,Grounds Maintenance Costs,5013,Tree Inspections - Various sites,02/08/2013,90052,462.00,Revenue,NAME REDACTED,20999
Chorley Borough Council,http://statistics.data.gov.uk/id/local-authority/30UE,Service Management & Support,1009,Streetscene & Leisure Contracts,Grounds Maintenance Contractor,20043,Grounds Maintenance Costs,5013,Various tree inspections,16/08/2013,90301,372.00,Revenue,NAME REDACTED,20999
Chorley Borough Council,http://statistics.data.gov.uk/id/local-authority/30UE,Democratic Represent and  Mgnt,1007,Governance,Uniforms,40039,"Clothing, Uniforms and Laundry",5025,Uniforms for new Lancastrian Attendants,23/08/2013,90283,431.90,Revenue,Alexandra,21752
Chorley Borough Council,http://statistics.data.gov.uk/id/local-authority/30UE,Central Support Services,1009,"Customer, ICT & Transactional",Bank Charges,40151,Miscellaneous Expenses,5034,CHBC,14/08/2013,90176,"2,032.91",Revenue,Allpay Net Ltd,17242
Chorley Borough Council,http://statistics.data.gov.uk/id/local-authority/30UE,Unapportionable Central OHeads,1009,"Customer, ICT & Transactional",Bank Charges,40151,Miscellaneous Expenses,5034,CHBC,14/08/2013,90176,43.01,Revenue,Allpay Net Ltd,17242
Chorley Borough Council,http://statistics.data.gov.uk/id/local-authority/30UE,Service Management & Support,1009,Shared Service Arrangement,Car Leasing Payment,14100,Direct Employee Expenses,5001,Vehicle Leasing,14/08/2013,90340,140.93,Revenue,Alphabet (Uk) Fleet Management Ltd,16651
Chorley Borough Council,http://statistics.data.gov.uk/id/local-authority/30UE,Service Management & Support,1009,Shared Service Arrangement,Car Leasing Payment,14100,Direct Employee Expenses,5001,Vehicle Leasing,14/08/2013,90340,12.48,Revenue,Alphabet (Uk) Fleet Management Ltd,16651
Chorley Borough Council,http://statistics.data.gov.uk/id/local-authority/30UE,Corporate Management,1008,Shared Service Arrangement,Car Leasing Payment,14100,Direct Employee Expenses,5001,Vehicle Leasing,14/08/2013,90340,363.01,Revenue,Alphabet (Uk) Fleet Management Ltd,16651
Chorley Borough Council,http://statistics.data.gov.uk/id/local-authority/30UE,Corporate Management,1008,Shared Service Arrangement,Car Leasing Payment,14100,Direct Employee Expenses,5001,Vehicle Leasing,14/08/2013,90340,30.44,Revenue,Alphabet (Uk) Fleet Management Ltd,16651
Chorley Borough Council,http://statistics.data.gov.uk/id/local-authority/30UE,Central Support Services,1009,Shared Service Arrangement,Car Leasing Payment,14100,Direct Employee Expenses,5001,Vehicle Leasing,14/08/2013,90342,"3,191.47",Revenue,Alphabet (Uk) Fleet Management Ltd,16651
Chorley Borough Council,http://statistics.data.gov.uk/id/local-authority/30UE,Unapportionable Central OHeads,1009,Shared Service Arrangement,Car Leasing Payment,14100,Direct Employee Expenses,5001,Vehicle Leasing,14/08/2013,90342,294.20,Revenue,Alphabet (Uk) Fleet Management Ltd,16651
Chorley Borough Council,http://statistics.data.gov.uk/id/local-authority/30UE,Unapportionable Central OHeads,1009,Shared Service Arrangement,Car Leasing Payment,14100,Direct Employee Expenses,5001,Vehicle Leasing,14/08/2013,90342,"4,052.38",Revenue,Alphabet (Uk) Fleet Management Ltd,16651
Chorley Borough Council,http://statistics.data.gov.uk/id/local-authority/30UE,Central Support Services,1009,Shared Service Arrangement,Car Leasing Payment,14100,Direct Employee Expenses,5001,Vehicle Leasing,14/08/2013,90342,268.04,Revenue,Alphabet (Uk) Fleet Management Ltd,16651
Chorley Borough Council,http://statistics.data.gov.uk/id/local-authority/30UE,Local Tax Collection,1010,Shared Service Arrangement,Car Leasing Payment,14100,Direct Employee Expenses,5001,Vehicle Leasing,21/08/2013,90442,"3,448.05",Revenue,Alphabet (Uk) Fleet Management Ltd,16651
Chorley Borough Council,http://statistics.data.gov.uk/id/local-authority/30UE,Local Tax Collection,1010,Shared Service Arrangement,Car Leasing Payment,14100,Direct Employee Expenses,5001,Vehicle Leasing,21/08/2013,90442,299.68,Revenue,Alphabet (Uk) Fleet Management Ltd,16651
Chorley Borough Council,http://statistics.data.gov.uk/id/local-authority/30UE,Economic Development,1096,Economic Development,Cleaning Materials,40019,"Equipment, Furniture & Materia",5023,To supply products as per email from Nicola Banks.,28/08/2013,90426,535.58,Revenue,Amtoll Ltd,21738
Chorley Borough Council,http://statistics.data.gov.uk/id/local-authority/30UE,Economic Development,1096,Economic Development,Grants To Other Organisations,40127,Grants and Subscriptions,5031,Starting in business grant,30/08/2013,90542,373.00,Revenue,Angels Domicilliary Care Services,61162
Chorley Borough Council,http://statistics.data.gov.uk/id/local-authority/30UE,Homelessness,1075,Housing,Rental Bond Scheme,40241,Miscellaneous Expenses,5034,Bond scheme claim for rent arrears,28/08/2013,90446,480.00,Revenue,NAME REDACTED,59484
Chorley Borough Council,http://statistics.data.gov.uk/id/local-authority/30UE,Planning Policy,1092,Planning,Consultants` Fees,40077,Services,5027,Gypsies and Travellers Site aassessment,23/08/2013,90478,"4,843.06",Revenue,Arc4,60831
Chorley Borough Council,http://statistics.data.gov.uk/id/local-authority/30UE,Parking Services,1066,Streetscene & Leisure Contracts,Special Repairs,20007,Repairs Maintenance & Alts,5005,"Car Park Refurbishment work, as per agreed specification",28/08/2013,90376,"7,880.04",Revenue,Ark Welding Ltd,18154
Chorley Borough Council,http://statistics.data.gov.uk/id/local-authority/30UE,Community Safety Crime Reduct,1043,Shared Service Arrangement,Car Leasing Payment,14100,Direct Employee Expenses,5001,Vehicle Leasing,21/08/2013,90427,"3,192.00",Revenue,Arnold Clark Finance Ltd,20685
Chorley Borough Council,http://statistics.data.gov.uk/id/local-authority/30UE,Corporate Management,1008,Shared Service Arrangement,Car Leasing Payment,14100,Direct Employee Expenses,5001,Vehicle Leasing,21/08/2013,90427,287.07,Revenue,Arnold Clark Finance Ltd,20685
Chorley Borough Council,http://statistics.data.gov.uk/id/local-authority/30UE,Economic Development,1096,Economic Development,Grants To Other Organisations,40127,Grants and Subscriptions,5031,Starting in business grant,14/08/2013,90081,750.00,Revenue,Aspire Gyms Ltd,60835
Chorley Borough Council,http://statistics.data.gov.uk/id/local-authority/30UE,Regulatory Services,1048,Health Environment & Neighbourhoods,Taxi Testing & Vehicle Safety Report,40234,Services,5027,MOT,09/08/2013,90180,603.35,Revenue,Autocentre LTD,21651
Chorley Borough Council,http://statistics.data.gov.uk/id/local-authority/30UE,Corporate Management,1008,Health Environment & Neighbourhoods,Taxi Testing & Vehicle Safety Report,40234,Services,5027,MOT,09/08/2013,90180,91.63,Revenue,Autocentre LTD,21651
Chorley Borough Council,http://statistics.data.gov.uk/id/local-authority/30UE,Service Management & Support,1009,Streetscene & Leisure Contracts,Registered Plant - Maintenance,40247,"Equipment, Furniture & Materia",5023,Supply pin fastener No JD-EPC047782 for John Deere 900,02/08/2013,90049,116.59,Revenue,Balmers Garden Machinery,17075
Chorley Borough Council,http://statistics.data.gov.uk/id/local-authority/30UE,Service Management & Support,1009,Streetscene & Leisure Contracts,Registered Plant - Maintenance,40247,"Equipment, Furniture & Materia",5023,Supply drain valve No JD-AM108172 for John Deere 900,02/08/2013,90049,20.81,Revenue,Balmers Garden Machinery,17075
Chorley Borough Council,http://statistics.data.gov.uk/id/local-authority/30UE,Service Management & Support,1009,Streetscene & Leisure Contracts,Registered Plant - Maintenance,40247,"Equipment, Furniture & Materia",5023,Supply Hydraulic motor No JD-DMU211324 for John Deere 900,02/08/2013,90049,184.59,Revenue,Balmers Garden Machinery,17075
Chorley Borough Council,http://statistics.data.gov.uk/id/local-authority/30UE,Central Support Services,1009,"Customer, ICT & Transactional",Consultants` Fees,40077,Services,5027,Support Services as agreed with Customer Transactional and ICT ServicesEstimated 3 days a week April to September 13,21/08/2013,90395,"2,100.00",Revenue,REDACTED PERSONAL DATA,22238
Chorley Borough Council,http://statistics.data.gov.uk/id/local-authority/30UE,Corporate Management,1008,Shared Service Arrangement,Other Fees,40212,Miscellaneous Expenses,5034,Contribution for settlement of cost on employers liability claim EL11-003 (withnell UDC employee),23/08/2013,90494,"1,692.00",Revenue,Berrymans lace Mawer,55368
Chorley Borough Council,http://statistics.data.gov.uk/id/local-authority/30UE,Central Support Services,1009,Shared Service Arrangement,Conferences - Staff,40120,Expenses,5030,New E U Procurement Directive Roadshow Manchester Airport Hilton 15th October 2013  ,30/08/2013,90522,501.50,Revenue,BIP Solutions Ltd,18252
Chorley Borough Council,http://statistics.data.gov.uk/id/local-authority/30UE,Unapportionable Central OHeads,1009,Shared Service Arrangement,Conferences - Staff,40120,Expenses,5030,New E U Procurement Directive Roadshow - Manchester Airport Hilton 15th October 2013 ,30/08/2013,90550,250.75,Revenue,BIP Solutions Ltd,18252
Chorley Borough Council,http://statistics.data.gov.uk/id/local-authority/30UE,Homelessness,1075,Chief Executives Office,Gas,20014,Energy Costs,5006,Cotswold House,14/08/2013,90345,326.88,Revenue,British Gas Business,22242
Chorley Borough Council,http://statistics.data.gov.uk/id/local-authority/30UE,Democratic Represent and  Mgnt,1007,Chief Executives Office,Gas,20014,Energy Costs,5006,Coach House,14/08/2013,90345,43.66,Revenue,British Gas Business,22242
Chorley Borough Council,http://statistics.data.gov.uk/id/local-authority/30UE,Community Development,1097,Chief Executives Office,Gas,20014,Energy Costs,5006,Accounting Adv Svcs,14/08/2013,90345,35.23,Revenue,British Gas Business,22242
Chorley Borough Council,http://statistics.data.gov.uk/id/local-authority/30UE,Democratic Represent and  Mgnt,1007,Chief Executives Office,Gas,20014,Energy Costs,5006,Yarrow Valley Park,14/08/2013,90345,7.34,Revenue,British Gas Business,22242
Chorley Borough Council,http://statistics.data.gov.uk/id/local-authority/30UE,Unapportionable Central OHeads,1009,Chief Executives Office,Gas,20014,Energy Costs,5006,Bengal Street,14/08/2013,90345,33.72,Revenue,British Gas Business,22242
Chorley Borough Council,http://statistics.data.gov.uk/id/local-authority/30UE,Democratic Represent and  Mgnt,1007,Chief Executives Office,Gas,20014,Energy Costs,5006,Astley Cottage,14/08/2013,90345,32.47,Revenue,British Gas Business,22242
Chorley Borough Council,http://statistics.data.gov.uk/id/local-authority/30UE,Democratic Represent and  Mgnt,1007,Chief Executives Office,Gas,20014,Energy Costs,5006,Clayton Brook Comm Ctr,14/08/2013,90345,22.30,Revenue,British Gas Business,22242
Chorley Borough Council,http://statistics.data.gov.uk/id/local-authority/30UE,Democratic Represent and  Mgnt,1007,Chief Executives Office,Gas,20014,Energy Costs,5006,Astley Vill Comm Ctr,14/08/2013,90345,34.13,Revenue,British Gas Business,22242
Chorley Borough Council,http://statistics.data.gov.uk/id/local-authority/30UE,Service Management Support,1009,Chief Executives Office,Gas,20014,Energy Costs,5006,Astley Hall Farm Hse,14/08/2013,90345,13.34,Revenue,British Gas Business,22242
Chorley Borough Council,http://statistics.data.gov.uk/id/local-authority/30UE,Democratic Represent and  Mgnt,1007,Chief Executives Office,Gas,20014,Energy Costs,5006,Eaves Green Comm Cttr,14/08/2013,90345,49.61,Revenue,British Gas Business,22242
Chorley Borough Council,http://statistics.data.gov.uk/id/local-authority/30UE,Unapportionable Central OHeads,1009,Chief Executives Office,Gas,20014,Energy Costs,5006,Union Street,14/08/2013,90345,529.29,Revenue,British Gas Business,22242
Chorley Borough Council,http://statistics.data.gov.uk/id/local-authority/30UE,Democratic Represent and  Mgnt,1007,Chief Executives Office,Gas,20014,Energy Costs,5006,Astley Hall,14/08/2013,90345,148.74,Revenue,British Gas Business,22242
Chorley Borough Council,http://statistics.data.gov.uk/id/local-authority/30UE,Unapportionable Central OHeads,1009,Chief Executives Office,Gas,20014,Energy Costs,5006,Town Hall,14/08/2013,90345,16.46,Revenue,British Gas Business,22242
Chorley Borough Council,http://statistics.data.gov.uk/id/local-authority/30UE,Central Support Services,1009,"Customer, ICT & Transactional",Telephones - Rentals,40083,Communication and Computing,5028,Useage Charges,02/08/2013,89991,843.58,Revenue,British Telecommunications Plc,17131
Chorley Borough Council,http://statistics.data.gov.uk/id/local-authority/30UE,Unapportionable Central OHeads,1009,"Customer, ICT & Transactional",Telephones - Calls,40084,Communication and Computing,5028,Recurring Charges,02/08/2013,89991,"7,876.03",Revenue,British Telecommunications Plc,17131
Chorley Borough Council,http://statistics.data.gov.uk/id/local-authority/30UE,Central Support Services,1009,"Customer, ICT & Transactional",Internet Charges,40104,Communication and Computing,5028,BT Teleworker,28/08/2013,90511,57.00,Revenue,British Telecommunications Plc,17131
Chorley Borough Council,http://statistics.data.gov.uk/id/local-authority/30UE,Homelessness,1075,"Customer, ICT & Transactional",Internet Charges,40104,Communication and Computing,5028,BT Teleworker,28/08/2013,90511,19.00,Revenue,British Telecommunications Plc,17131
Chorley Borough Council,http://statistics.data.gov.uk/id/local-authority/30UE,Culture & Heritage,1036,"Customer, ICT & Transactional",Internet Charges,40104,Communication and Computing,5028,BT Teleworker,28/08/2013,90511,19.00,Revenue,British Telecommunications Plc,17131
Chorley Borough Council,http://statistics.data.gov.uk/id/local-authority/30UE,Democratic Represent and  Mgnt,1007,"Customer, ICT & Transactional",Internet Charges,40104,Communication and Computing,5028,BT Teleworker,28/08/2013,90511,19.00,Revenue,British Telecommunications Plc,17131
Chorley Borough Council,http://statistics.data.gov.uk/id/local-authority/30UE,Democratic Represent and  Mgnt,1007,"Customer, ICT & Transactional",Internet Charges,40104,Communication and Computing,5028,BT Teleworker,28/08/2013,90511,589.00,Revenue,British Telecommunications Plc,17131
Chorley Borough Council,http://statistics.data.gov.uk/id/local-authority/30UE,Service Management & Support,1009,Streetscene & Leisure Contracts,Vehicle Maintenance,30045,Direct Transport Costs,5016,Carryout pre MOT inspection and repairs take for annual test on DK07LDE. Also repairs to wagon has reported by driver,14/08/2013,90210,"2,254.30",Revenue,C P Davidson & Sons Ltd,21093
Chorley Borough Council,http://statistics.data.gov.uk/id/local-authority/30UE,Service Management & Support,1009,Streetscene & Leisure Contracts,Vehicle Maintenance,30045,Direct Transport Costs,5016,Carryout pre MOT inspection and repairs take for annual test on DK07LDE. Also repairs to wagon has reported by driver,14/08/2013,90210,93.00,Revenue,C P Davidson & Sons Ltd,21093
Chorley Borough Council,http://statistics.data.gov.uk/id/local-authority/30UE,Service Management & Support,1009,Streetscene & Leisure Contracts,Vehicle Maintenance,30045,Direct Transport Costs,5016,Supply and fit compressor on PN02HRL as per FTA repair sheet,23/08/2013,90460,558.23,Revenue,C P Davidson & Sons Ltd,21093
Chorley Borough Council,http://statistics.data.gov.uk/id/local-authority/30UE,Central Support Services,1009,"Customer, ICT & Transactional",Emergency Call Out System,40096,Communication and Computing,5028,Call Charges April 2013,16/08/2013,90321,839.04,Revenue,CallCare Ltd,20257
Chorley Borough Council,http://statistics.data.gov.uk/id/local-authority/30UE,Unapportionable Central OHeads,1009,"Customer, ICT & Transactional",Emergency Call Out System,40096,Communication and Computing,5028,Standing Charge June 2013,16/08/2013,90321,120.00,Revenue,CallCare Ltd,20257
Chorley Borough Council,http://statistics.data.gov.uk/id/local-authority/30UE,Service Management & Support,1009,Streetscene & Leisure Contracts,Gas,20014,Energy Costs,5006,Propane,28/08/2013,90457,735.79,Revenue,Calor Gas Limited,22104
Chorley Borough Council,http://statistics.data.gov.uk/id/local-authority/30UE,Parking Services,1066,Streetscene & Leisure Contracts,External Contractors,50008,Private Contractors,5042,"Provision of notice processing services as agreed in Lancashire Contract.320 PCNs per month.",16/08/2013,90306,694.14,Revenue,Chipside Ltd,22063
Chorley Borough Council,http://statistics.data.gov.uk/id/local-authority/30UE,Parking Services,1066,Streetscene & Leisure Contracts,External Contractors,50008,Private Contractors,5042,"Provision of notice processing services as agreed in Lancashire Contract.320 PCNs per month.",16/08/2013,90307,"1,456.92",Revenue,Chipside Ltd,22063
Chorley Borough Council,http://statistics.data.gov.uk/id/local-authority/30UE,Democratic Represent and  Mgnt,1007,Governance,Other Contributions,40145,Grants and Subscriptions,5031,Donation from the Mayors Charity Appeal 2012-13,09/08/2013,90139,"1,415.00",Revenue,Chorley & South Ribble Shopmobility,18403
Chorley Borough Council,http://statistics.data.gov.uk/id/local-authority/30UE,Democratic Represent and  Mgnt,1007,Governance,Other Contributions,40145,Grants and Subscriptions,5031,Donation from the Mayors Charity Appeal 2012-13,09/08/2013,90138,"1,415.00",Revenue,Chorley and District Mencap Society,60828
Chorley Borough Council,http://statistics.data.gov.uk/id/local-authority/30UE,Corporate Management,1008,Health Environment & Neighbourhoods,Taxi Testing & Vehicle Safety Report,40234,Services,5027,MOT,09/08/2013,90109,987.30,Revenue,Chorley Autocare Ltd,17110
Chorley Borough Council,http://statistics.data.gov.uk/id/local-authority/30UE,Corporate Management,1008,Health Environment & Neighbourhoods,Taxi Testing & Vehicle Safety Report,40234,Services,5027,MOT,09/08/2013,90109,153.90,Revenue,Chorley Autocare Ltd,17110
Chorley Borough Council,http://statistics.data.gov.uk/id/local-authority/30UE,Elections,1012,Chief Executives Office,Petrol,30005,Direct Transport Costs,5016,diesel for Elections Van,23/08/2013,90493,8.32,Revenue,Chorley BC Petty Cash ,16301
Chorley Borough Council,http://statistics.data.gov.uk/id/local-authority/30UE,Democratic Represent and  Mgnt,1007,Chief Executives Office,Tools & Equipment - Purchase,40003,"Equipment, Furniture & Materia",5023,Batteries,23/08/2013,90493,10.00,Revenue,Chorley BC Petty Cash ,16301
Chorley Borough Council,http://statistics.data.gov.uk/id/local-authority/30UE,Democratic Represent and  Mgnt,1007,Chief Executives Office,Tools & Equipment - Purchase,40003,"Equipment, Furniture & Materia",5023,Batteries,23/08/2013,90493,10.00,Revenue,Chorley BC Petty Cash ,16301
Chorley Borough Council,http://statistics.data.gov.uk/id/local-authority/30UE,Democratic Represent and  Mgnt,1007,Chief Executives Office,Use Of Transport - Mayoral Car,30015,Transport Recharges,5017,Car wash for Mayors Car,23/08/2013,90493,5.32,Revenue,Chorley BC Petty Cash ,16301
Chorley Borough Council,http://statistics.data.gov.uk/id/local-authority/30UE,Central Support Services,1009,Chief Executives Office,Refreshments,40036,Catering,5024,Refrshments for Civic Sunday,23/08/2013,90493,10.70,Revenue,Chorley BC Petty Cash ,16301
Chorley Borough Council,http://statistics.data.gov.uk/id/local-authority/30UE,Unapportionable Central OHeads,1009,Chief Executives Office,Refreshments,40036,Catering,5024,Refreshments for staff listening,23/08/2013,90493,18.68,Revenue,Chorley BC Petty Cash ,16301
Chorley Borough Council,http://statistics.data.gov.uk/id/local-authority/30UE,Central Support Services,1009,Chief Executives Office,Fixtures & Fittings - Purchase,20027,Fixtures and Fittings,5010,Light starters,23/08/2013,90493,4.09,Revenue,Chorley BC Petty Cash ,16301
Chorley Borough Council,http://statistics.data.gov.uk/id/local-authority/30UE,Democratic Represent and  Mgnt,1007,Chief Executives Office,Use Of Transport - Mayoral Car,30015,Transport Recharges,5017,Mayors car wash,23/08/2013,90493,2.67,Revenue,Chorley BC Petty Cash ,16301
Chorley Borough Council,http://statistics.data.gov.uk/id/local-authority/30UE,Central Support Services,1009,Chief Executives Office,Refreshments,40036,Catering,5024,Refreshments,23/08/2013,90493,10.50,Revenue,Chorley BC Petty Cash ,16301
Chorley Borough Council,http://statistics.data.gov.uk/id/local-authority/30UE,Central Support Services,1009,Chief Executives Office,Refreshments,40036,Catering,5024,Refreshments,23/08/2013,90493,10.50,Revenue,Chorley BC Petty Cash ,16301
Chorley Borough Council,http://statistics.data.gov.uk/id/local-authority/30UE,Central Support Services,1009,Chief Executives Office,Telephones - Other,40085,Communication and Computing,5028,Cordless Telephone,23/08/2013,90493,29.16,Revenue,Chorley BC Petty Cash ,16301
Chorley Borough Council,http://statistics.data.gov.uk/id/local-authority/30UE,Unapportionable Central OHeads,1009,Chief Executives Office,Tools & Equipment - Purchase,40003,"Equipment, Furniture & Materia",5023,Battery Tester,23/08/2013,90493,7.10,Revenue,Chorley BC Petty Cash ,16301
Chorley Borough Council,http://statistics.data.gov.uk/id/local-authority/30UE,Economic Development,1096,Chief Executives Office,Miscellaneous Expenses,40200,Miscellaneous Expenses,5034,Keys Cut,23/08/2013,90493,5.79,Revenue,Chorley BC Petty Cash ,16301
Chorley Borough Council,http://statistics.data.gov.uk/id/local-authority/30UE,Democratic Represent and  Mgnt,1007,Chief Executives Office,Use Of Transport - Mayoral Car,30015,Transport Recharges,5017,Mayoral Car /wash,23/08/2013,90493,2.66,Revenue,Chorley BC Petty Cash ,16301
Chorley Borough Council,http://statistics.data.gov.uk/id/local-authority/30UE,Unapportionable Central OHeads,1009,Chief Executives Office,Tools & Equipment - Purchase,40003,"Equipment, Furniture & Materia",5023,Kettle for Union Street Kitchen,23/08/2013,90493,16.66,Revenue,Chorley BC Petty Cash ,16301
Chorley Borough Council,http://statistics.data.gov.uk/id/local-authority/30UE,Central Support Services,1009,Chief Executives Office,Stationery,40050,"Printing, Stationery & General",5026,A-Z of Chorley for training purposes,23/08/2013,90493,4.13,Revenue,Chorley BC Petty Cash ,16301
Chorley Borough Council,http://statistics.data.gov.uk/id/local-authority/30UE,Democratic Represent and  Mgnt,1007,Chief Executives Office,Sports Development Initiatives,40186,Miscellaneous Expenses,5034,Refreshments for Active wWomen event,23/08/2013,90493,8.82,Revenue,Chorley BC Petty Cash ,16301
Chorley Borough Council,http://statistics.data.gov.uk/id/local-authority/30UE,Democratic Represent and  Mgnt,1007,Chief Executives Office,Sports Development Initiatives,40186,Miscellaneous Expenses,5034,Clipboards,23/08/2013,90493,4.17,Revenue,Chorley BC Petty Cash ,16301
Chorley Borough Council,http://statistics.data.gov.uk/id/local-authority/30UE,Democratic Represent and  Mgnt,1007,Chief Executives Office,Use Of Transport - Mayoral Car,30015,Transport Recharges,5017,Mayors Car Wash,23/08/2013,90493,2.67,Revenue,Chorley BC Petty Cash ,16301
Chorley Borough Council,http://statistics.data.gov.uk/id/local-authority/30UE,Unapportionable Central OHeads,1009,Chief Executives Office,Refreshments,40036,Catering,5024,Refreshment for Meeting roms,23/08/2013,90493,1.96,Revenue,Chorley BC Petty Cash ,16301
Chorley Borough Council,http://statistics.data.gov.uk/id/local-authority/30UE,Unapportionable Central OHeads,1009,Chief Executives Office,Fixtures & Fittings - Purchase,20027,Fixtures and Fittings,5010,Armed Forces Day flag,23/08/2013,90493,13.95,Revenue,Chorley BC Petty Cash ,16301
Chorley Borough Council,http://statistics.data.gov.uk/id/local-authority/30UE,Central Support Services,1009,Chief Executives Office,Tools & Equipment - Purchase,40003,"Equipment, Furniture & Materia",5023,Batteries for Meeting room projector remotes1,23/08/2013,90493,4.16,Revenue,Chorley BC Petty Cash ,16301
Chorley Borough Council,http://statistics.data.gov.uk/id/local-authority/30UE,Economic Development,1096,Chief Executives Office,Fixtures & Fittings - Purchase,20027,Fixtures and Fittings,5010,Cable Ties for Markt office,23/08/2013,90493,6.65,Revenue,Chorley BC Petty Cash ,16301
Chorley Borough Council,http://statistics.data.gov.uk/id/local-authority/30UE,Economic Development,1096,Chief Executives Office,Cleaning Materials,40019,"Equipment, Furniture & Materia",5023,Bleach for Market Office,23/08/2013,90493,2.48,Revenue,Chorley BC Petty Cash ,16301
Chorley Borough Council,http://statistics.data.gov.uk/id/local-authority/30UE,Unapportionable Central OHeads,1009,Chief Executives Office,Fixtures & Fittings - Purchase,20027,Fixtures and Fittings,5010,Wall clock for town hall,23/08/2013,90493,10.83,Revenue,Chorley BC Petty Cash ,16301
Chorley Borough Council,http://statistics.data.gov.uk/id/local-authority/30UE,Unapportionable Central OHeads,1009,Chief Executives Office,Tools & Equipment - Purchase,40003,"Equipment, Furniture & Materia",5023,Cutlery Tray for Staff,23/08/2013,90493,1.66,Revenue,Chorley BC Petty Cash ,16301
Chorley Borough Council,http://statistics.data.gov.uk/id/local-authority/30UE,Central Support Services,1009,Chief Executives Office,Postages,40082,Communication and Computing,5028,Postage,23/08/2013,90493,1.50,Revenue,Chorley BC Petty Cash ,16301
Chorley Borough Council,http://statistics.data.gov.uk/id/local-authority/30UE,Central Support Services,1009,Chief Executives Office,Tools & Equipment - Purchase,40003,"Equipment, Furniture & Materia",5023,Keys Cut,23/08/2013,90493,1.88,Revenue,Chorley BC Petty Cash ,16301
Chorley Borough Council,http://statistics.data.gov.uk/id/local-authority/30UE,Central Support Services,1009,Chief Executives Office,Uniforms,40039,"Clothing, Uniforms and Laundry",5025,Dry Clean uniform,23/08/2013,90493,13.00,Revenue,Chorley BC Petty Cash ,16301
Chorley Borough Council,http://statistics.data.gov.uk/id/local-authority/30UE,Development Control,1091,Chief Executives Office,Postages,40082,Communication and Computing,5028,Postage,23/08/2013,90493,15.92,Revenue,Chorley BC Petty Cash ,16301
Chorley Borough Council,http://statistics.data.gov.uk/id/local-authority/30UE,Unapportionable Central OHeads,1009,Chief Executives Office,Tools & Equipment - Purchase,40003,"Equipment, Furniture & Materia",5023,Carpet Glue for meeting room,23/08/2013,90493,3.99,Revenue,Chorley BC Petty Cash ,16301
Chorley Borough Council,http://statistics.data.gov.uk/id/local-authority/30UE,Democratic Represent and  Mgnt,1007,Chief Executives Office,Sports Development Initiatives,40186,Miscellaneous Expenses,5034,Purchase and engraving of trophies,23/08/2013,90493,12.75,Revenue,Chorley BC Petty Cash ,16301
Chorley Borough Council,http://statistics.data.gov.uk/id/local-authority/30UE,Democratic Represent and  Mgnt,1007,Chief Executives Office,Sports Development Initiatives,40186,Miscellaneous Expenses,5034,Refreshments for Tea Dance,23/08/2013,90493,4.57,Revenue,Chorley BC Petty Cash ,16301
Chorley Borough Council,http://statistics.data.gov.uk/id/local-authority/30UE,Democratic Represent and  Mgnt,1007,Chief Executives Office,Sports Development Initiatives,40186,Miscellaneous Expenses,5034,Refreshments for Tea Dance,23/08/2013,90493,11.61,Revenue,Chorley BC Petty Cash ,16301
Chorley Borough Council,http://statistics.data.gov.uk/id/local-authority/30UE,Central Support Services,1009,Chief Executives Office,Tools & Equipment - Purchase,40003,"Equipment, Furniture & Materia",5023,Carpet Glue for meeting room,23/08/2013,90493,3.99,Revenue,Chorley BC Petty Cash ,16301
Chorley Borough Council,http://statistics.data.gov.uk/id/local-authority/30UE,Economic Development,1096,Chief Executives Office,Miscellaneous Expenses,40200,Miscellaneous Expenses,5034,Funnel for Cleaning fluid and keys cut,23/08/2013,90493,6.49,Revenue,Chorley BC Petty Cash ,16301
Chorley Borough Council,http://statistics.data.gov.uk/id/local-authority/30UE,Central Support Services,1009,Chief Executives Office,Refreshments,40036,Catering,5024,Keys cut for cleaners cupboard,23/08/2013,90493,4.98,Revenue,Chorley BC Petty Cash ,16301
Chorley Borough Council,http://statistics.data.gov.uk/id/local-authority/30UE,Corporate Management,1008,Chief Executives Office,Postages,40082,Communication and Computing,5028,Postage,23/08/2013,90493,1.50,Revenue,Chorley BC Petty Cash ,16301
Chorley Borough Council,http://statistics.data.gov.uk/id/local-authority/30UE,Democratic Represent and  Mgnt,1007,Chief Executives Office,Use Of Transport - Mayoral Car,30015,Transport Recharges,5017,Mayor car wash,23/08/2013,90493,2.67,Revenue,Chorley BC Petty Cash ,16301
Chorley Borough Council,http://statistics.data.gov.uk/id/local-authority/30UE,Central Support Services,1009,Chief Executives Office,Stationery,40050,"Printing, Stationery & General",5026,Batteries,23/08/2013,90493,0.83,Revenue,Chorley BC Petty Cash ,16301
Chorley Borough Council,http://statistics.data.gov.uk/id/local-authority/30UE,Democratic Represent and  Mgnt,1007,Chief Executives Office,Use Of Transport - Mayoral Car,30015,Transport Recharges,5017,Mayor car wash,23/08/2013,90493,2.67,Revenue,Chorley BC Petty Cash ,16301
Chorley Borough Council,http://statistics.data.gov.uk/id/local-authority/30UE,Democratic Represent and  Mgnt,1007,Chief Executives Office,Tools & Equipment - Purchase,40003,"Equipment, Furniture & Materia",5023,Keys cut,23/08/2013,90493,2.50,Revenue,Chorley BC Petty Cash ,16301
Chorley Borough Council,http://statistics.data.gov.uk/id/local-authority/30UE,Democratic Represent and  Mgnt,1007,Chief Executives Office,Tools & Equipment - Purchase,40003,"Equipment, Furniture & Materia",5023,Keys cut,23/08/2013,90493,10.00,Revenue,Chorley BC Petty Cash ,16301
Chorley Borough Council,http://statistics.data.gov.uk/id/local-authority/30UE,Democratic Represent and  Mgnt,1007,Chief Executives Office,Tools & Equipment - Purchase,40003,"Equipment, Furniture & Materia",5023,Keys cut,23/08/2013,90493,7.50,Revenue,Chorley BC Petty Cash ,16301
Chorley Borough Council,http://statistics.data.gov.uk/id/local-authority/30UE,Unapportionable Central OHeads,1009,Chief Executives Office,Refreshments,40036,Catering,5024,Tape,23/08/2013,90493,1.67,Revenue,Chorley BC Petty Cash ,16301
Chorley Borough Council,http://statistics.data.gov.uk/id/local-authority/30UE,Central Support Services,1009,Chief Executives Office,Refreshments,40036,Catering,5024,Biscuits,23/08/2013,90493,2.50,Revenue,Chorley BC Petty Cash ,16301
Chorley Borough Council,http://statistics.data.gov.uk/id/local-authority/30UE,Democratic Represent and  Mgnt,1007,Chief Executives Office,Use Of Transport - Mayoral Car,30015,Transport Recharges,5017,Mayor car wash,23/08/2013,90493,2.67,Revenue,Chorley BC Petty Cash ,16301
Chorley Borough Council,http://statistics.data.gov.uk/id/local-authority/30UE,Democratic Represent and  Mgnt,1007,Chief Executives Office,Miscellaneous Expenses,40200,Miscellaneous Expenses,5034,Diaries and Pot Pourri,23/08/2013,90493,7.50,Revenue,Chorley BC Petty Cash ,16301
Chorley Borough Council,http://statistics.data.gov.uk/id/local-authority/30UE,Democratic Represent and  Mgnt,1007,Chief Executives Office,Miscellaneous Expenses,40200,Miscellaneous Expenses,5034,Rope Door stops for astley Hall,23/08/2013,90493,16.65,Revenue,Chorley BC Petty Cash ,16301
Chorley Borough Council,http://statistics.data.gov.uk/id/local-authority/30UE,Culture & Heritage,1036,Chief Executives Office,Miscellaneous Expenses,40200,Miscellaneous Expenses,5034,Stickers,23/08/2013,90493,0.99,Revenue,Chorley BC Petty Cash ,16301
Chorley Borough Council,http://statistics.data.gov.uk/id/local-authority/30UE,Democratic Represent and  Mgnt,1007,Chief Executives Office,Miscellaneous Expenses,40200,Miscellaneous Expenses,5034,Cable Ties,23/08/2013,90493,4.58,Revenue,Chorley BC Petty Cash ,16301
Chorley Borough Council,http://statistics.data.gov.uk/id/local-authority/30UE,Culture & Heritage,1036,Chief Executives Office,Miscellaneous Expenses,40200,Miscellaneous Expenses,5034,Coffee and Sugar,23/08/2013,90493,5.65,Revenue,Chorley BC Petty Cash ,16301
Chorley Borough Council,http://statistics.data.gov.uk/id/local-authority/30UE,Democratic Represent and  Mgnt,1007,Chief Executives Office,Miscellaneous Expenses,40200,Miscellaneous Expenses,5034,Cloths,23/08/2013,90493,3.33,Revenue,Chorley BC Petty Cash ,16301
Chorley Borough Council,http://statistics.data.gov.uk/id/local-authority/30UE,Democratic Represent and  Mgnt,1007,Chief Executives Office,Use Of Transport - Mayoral Car,30015,Transport Recharges,5017,Mayor car wash,23/08/2013,90493,2.08,Revenue,Chorley BC Petty Cash ,16301
Chorley Borough Council,http://statistics.data.gov.uk/id/local-authority/30UE,Unapportionable Central OHeads,1009,Chief Executives Office,Tools & Equipment - Purchase,40003,"Equipment, Furniture & Materia",5023,Key cut,23/08/2013,90493,2.92,Revenue,Chorley BC Petty Cash ,16301
Chorley Borough Council,http://statistics.data.gov.uk/id/local-authority/30UE,Central Support Services,1009,Governance,Asset Maintenance Fund,20012,Repairs Maintenance & Alts,5005,Purchase of light bulbs for all public buildings.,21/08/2013,90280,535.63,Revenue,Chorley Electrical Traders Ltd,16330
Chorley Borough Council,http://statistics.data.gov.uk/id/local-authority/30UE,Service Management & Support,1009,Streetscene & Leisure Contracts,Vehicle Maintenance,30045,Direct Transport Costs,5016,Supply and fit 2 x hew front all terrain tyres on PN04XSP as required,14/08/2013,90267,766.00,Revenue,Chorley Tyres,53719
Chorley Borough Council,http://statistics.data.gov.uk/id/local-authority/30UE,Economic Development,1096,Economic Development,Grants To Other Organisations,40127,Grants and Subscriptions,5031,Starting in business grant,02/08/2013,90045,746.71,Revenue,NAME REDACTED,60753
Chorley Borough Council,http://statistics.data.gov.uk/id/local-authority/30UE,Service Management & Support,1009,Streetscene & Leisure Contracts,Leasing of Plant,40002,"Equipment, Furniture & Materia",5023,25% of savings on SGEF 6605X01014 PL54 COH,28/08/2013,90371,153.58,Revenue,Chrystal Consulting,17613
Chorley Borough Council,http://statistics.data.gov.uk/id/local-authority/30UE,Service Management & Support,1009,Streetscene & Leisure Contracts,Leasing of Plant,40002,"Equipment, Furniture & Materia",5023,25% of savings on SGEF 6605X01014 PL54 COA,28/08/2013,90371,83.60,Revenue,Chrystal Consulting,17613
Chorley Borough Council,http://statistics.data.gov.uk/id/local-authority/30UE,Service Management & Support,1009,Streetscene & Leisure Contracts,Leasing of Plant,40002,"Equipment, Furniture & Materia",5023,25% of savings on SGEF 6605X01014 PL54 COU,28/08/2013,90371,184.73,Revenue,Chrystal Consulting,17613
Chorley Borough Council,http://statistics.data.gov.uk/id/local-authority/30UE,Service Management & Support,1009,Streetscene & Leisure Contracts,Transport Operating Leases,30029,Contrct Hire & Operating Lease,5018,Rental of Schmidt Swingo Compact Sweeper AE55 HKK 30th June to 29th July 2013,28/08/2013,90372,250.00,Revenue,Chrystal Consulting,17613
Chorley Borough Council,http://statistics.data.gov.uk/id/local-authority/30UE,Unapportionable Central OHeads,1009,Shared Service Arrangement,IT Software - Annual Licences,40101,Communication and Computing,5028,Icon Hosted Annual Licence & Maintenance 2013/14,02/08/2013,89514,"12,850.00",Revenue,Civica UK Limited,17463
Chorley Borough Council,http://statistics.data.gov.uk/id/local-authority/30UE,Unapportionable Central OHeads,1009,Shared Service Arrangement,Computer Software-Maintenance,40107,Communication and Computing,5028,Release 10/11 Upgrade as per quotation 12112 revision 3,28/08/2013,90277,"4,675.00",Revenue,Civica UK Limited,17463
Chorley Borough Council,http://statistics.data.gov.uk/id/local-authority/30UE,Service Management & Support,1009,Streetscene & Leisure Contracts,Tools & Equipment - Purchase,40003,"Equipment, Furniture & Materia",5023,Supply 2 x Husqvarna machines already delivered,07/08/2013,90054,"1,200.00",Revenue,Clarke & Pulman Ltd,17745
Chorley Borough Council,http://statistics.data.gov.uk/id/local-authority/30UE,Service Management & Support,1009,Streetscene & Leisure Contracts,Tools & Equipment - Purchase,40003,"Equipment, Furniture & Materia",5023,Carryout repairs to Wessex demo machine after accidental damage,07/08/2013,90054,300.00,Revenue,Clarke & Pulman Ltd,17745
Chorley Borough Council,http://statistics.data.gov.uk/id/local-authority/30UE,Elections,1012,Governance,Rent/Hire Of Premises,20017,Premises Rents,5007,Room Hire for polling station 2 May 2013 LCC elections,23/08/2013,90419,340.00,Revenue,Clayton-Le-Woods Community Centre,18526
Chorley Borough Council,http://statistics.data.gov.uk/id/local-authority/30UE,Economic Development,1096,Economic Development,Publicity - Advertising,40157,Miscellaneous Expenses,5034,August (Christmas Supplement) Full page Full Colour Advertisement to appear in the August edition of Coach Tour UK,30/08/2013,90232,300.00,Revenue,Coach Tours UK,18968
Chorley Borough Council,http://statistics.data.gov.uk/id/local-authority/30UE,Service Management & Support,1009,Streetscene & Leisure Contracts,Grounds Maintenance Contractor,20043,Grounds Maintenance Costs,5013,"Tree pruning work 41 Meadow Croft, Euxton.",21/08/2013,90058,450.00,Revenue,Cornthwaite Tree Care,21250
Chorley Borough Council,http://statistics.data.gov.uk/id/local-authority/30UE,Central Support Services,1009,"Customer, ICT & Transactional",Miscellaneous Expenses,40200,Miscellaneous Expenses,5034,Service agreement no. 602 Fujitsu M4097D,14/08/2013,90055,395.00,Revenue,CULL micro Imaging Ltd,22097
Chorley Borough Council,http://statistics.data.gov.uk/id/local-authority/30UE,Democratic Represent and  Mgnt,1007,Streetscene & Leisure Contracts,Children's Activities,40188,Miscellaneous Expenses,5034,Contribution towards memorial bench,16/08/2013,89978,850.00,Revenue,Custom Chainsaw Sculptures,49918
Chorley Borough Council,http://statistics.data.gov.uk/id/local-authority/30UE,Service Management & Support,1009,Streetscene & Leisure Contracts,Vehicle Maintenance,30045,Direct Transport Costs,5016,Carryout accident repairs to Schmidt Swingo after accident damage at price of quotation,07/08/2013,90002,"1,227.73",Revenue,Dawson Rental Sweepers,22011
Chorley Borough Council,http://statistics.data.gov.uk/id/local-authority/30UE,Service Management & Support,1009,Streetscene & Leisure Contracts,Hire Of Transport,30028,Contrct Hire & Operating Lease,5018,Hire of Johnston VT650 Reg RX08 FDV at price quoted from 01/04/2013 to 01/07/2013,30/08/2013,90105,"2,691.00",Revenue,Dawson Rental Sweepers,22011
Chorley Borough Council,http://statistics.data.gov.uk/id/local-authority/30UE,Service Management & Support,1009,Streetscene & Leisure Contracts,Hire Of Transport,30028,Contrct Hire & Operating Lease,5018,Hire of Schmidt Swingo 250 Reg AE57ENG at price agreed from 01/04/2013 to 01/07/2013,30/08/2013,90106,"2,162.00",Revenue,Dawson Rental Sweepers,22011
Chorley Borough Council,http://statistics.data.gov.uk/id/local-authority/30UE,Service Management & Support,1009,Streetscene & Leisure Contracts,Hire Of Transport,30028,Contrct Hire & Operating Lease,5018,Hire of Schmidt Swingo 250 Reg No YK59BDO at agreed price from 01/04/2013 to 01/07/2013,30/08/2013,90107,"1,974.00",Revenue,Dawson Rental Sweepers,22011
Chorley Borough Council,http://statistics.data.gov.uk/id/local-authority/30UE,Economic Development,1096,Economic Development,Consultants` Fees,40077,Services,5027,Provision of Town Centre Masterplan,14/08/2013,90346,"11,467.04",Revenue,Deloitte LLP,58651
Chorley Borough Council,http://statistics.data.gov.uk/id/local-authority/30UE,Service Management & Support,1009,Streetscene & Leisure Contracts,Tools & Equipment - Maintenance,40005,"Equipment, Furniture & Materia",5023,Supply manual load strimmer heads x 6 at price quoted,09/08/2013,90149,84.35,Revenue,Dick Leigh,17138
Chorley Borough Council,http://statistics.data.gov.uk/id/local-authority/30UE,Service Management & Support,1009,Streetscene & Leisure Contracts,Tools & Equipment - Maintenance,40005,"Equipment, Furniture & Materia",5023,Supply harness x 6 at price quoted,09/08/2013,90149,85.02,Revenue,Dick Leigh,17138
Chorley Borough Council,http://statistics.data.gov.uk/id/local-authority/30UE,Service Management & Support,1009,Streetscene & Leisure Contracts,Tools & Equipment - Maintenance,40005,"Equipment, Furniture & Materia",5023,Supply Bulk line yellow x 6 at price quoted,09/08/2013,90149,54.36,Revenue,Dick Leigh,17138
Chorley Borough Council,http://statistics.data.gov.uk/id/local-authority/30UE,Service Management & Support,1009,Streetscene & Leisure Contracts,Tools & Equipment - Maintenance,40005,"Equipment, Furniture & Materia",5023,Supply carburettor kit x 3 at price quoted,09/08/2013,90149,61.25,Revenue,Dick Leigh,17138
Chorley Borough Council,http://statistics.data.gov.uk/id/local-authority/30UE,Service Management & Support,1009,Streetscene & Leisure Contracts,Tools & Equipment - Maintenance,40005,"Equipment, Furniture & Materia",5023,Supply Rewind springs x 6 at price quoted,09/08/2013,90149,30.35,Revenue,Dick Leigh,17138
Chorley Borough Council,http://statistics.data.gov.uk/id/local-authority/30UE,Service Management & Support,1009,Streetscene & Leisure Contracts,Tools & Equipment - Maintenance,40005,"Equipment, Furniture & Materia",5023,Supply HT back pack carrier system x 2 at price quoted,09/08/2013,90149,62.21,Revenue,Dick Leigh,17138
Chorley Borough Council,http://statistics.data.gov.uk/id/local-authority/30UE,Service Management & Support,1009,Streetscene & Leisure Contracts,Tools & Equipment - Purchase,40003,"Equipment, Furniture & Materia",5023,Supply BR 430 Backpack Blower has per your quote,30/08/2013,90465,"3,180.00",Revenue,Dick Leigh,17138
Chorley Borough Council,http://statistics.data.gov.uk/id/local-authority/30UE,Service Management & Support,1009,Streetscene & Leisure Contracts,Tools & Equipment - Purchase,40003,"Equipment, Furniture & Materia",5023,Supply Pole saw HT131 has per your quote,30/08/2013,90465,920.00,Revenue,Dick Leigh,17138
Chorley Borough Council,http://statistics.data.gov.uk/id/local-authority/30UE,Service Management & Support,1009,Streetscene & Leisure Contracts,Tools & Equipment - Purchase,40003,"Equipment, Furniture & Materia",5023,Supply  DEG L/Reach hedge trimmer HL100 at price quoted,30/08/2013,90465,862.00,Revenue,Dick Leigh,17138
Chorley Borough Council,http://statistics.data.gov.uk/id/local-authority/30UE,Service Management & Support,1009,Streetscene & Leisure Contracts,Tools & Equipment - Purchase,40003,"Equipment, Furniture & Materia",5023,Supply MS261 16`` Chainsaw at price quoted,30/08/2013,90465,"1,508.00",Revenue,Dick Leigh,17138
Chorley Borough Council,http://statistics.data.gov.uk/id/local-authority/30UE,Service Management & Support,1009,Streetscene & Leisure Contracts,Tools & Equipment - Purchase,40003,"Equipment, Furniture & Materia",5023,Supply FS460C-EM Brushcutter at price quoted,30/08/2013,90465,"6,636.00",Revenue,Dick Leigh,17138
Chorley Borough Council,http://statistics.data.gov.uk/id/local-authority/30UE,Service Management & Support,1009,Streetscene & Leisure Contracts,Tools & Equipment - Purchase,40003,"Equipment, Furniture & Materia",5023,Supply HS81R 30`` Hedgecutter at price quoted,30/08/2013,90465,"3,140.00",Revenue,Dick Leigh,17138
Chorley Borough Council,http://statistics.data.gov.uk/id/local-authority/30UE,Democratic Represent and  Mgnt,1007,Health Environment & Neighbourhoods,Corp Training - Health and Safety,17004,Indirect Employee Expenses,5002,For supply of training licence for 12 months period up to 50 people. Duty of Care pack of on line learning price,23/08/2013,89968,"1,250.00",Revenue,Educare Learning Ltd,60489
Chorley Borough Council,http://statistics.data.gov.uk/id/local-authority/30UE,Economic Development,1096,Economic Development,Grants To Other Organisations,40127,Grants and Subscriptions,5031,Starting in business grant,28/08/2013,90498,276.00,Revenue,NAME REDACTED,60334
Chorley Borough Council,http://statistics.data.gov.uk/id/local-authority/30UE,Central Support Services,1009,Governance,Furniture - Purchase,40012,"Equipment, Furniture & Materia",5023,1-318 - EVAC - STAND BRACKETS,21/08/2013,90370,310.00,Revenue,Evac+Chair International Ltd,49344
Chorley Borough Council,http://statistics.data.gov.uk/id/local-authority/30UE,Unapportionable Central OHeads,1009,Governance,Furniture - Purchase,40012,"Equipment, Furniture & Materia",5023,1-318 - EVAC - STAND BRACKETS,21/08/2013,90370,310.00,Revenue,Evac+Chair International Ltd,49344
Chorley Borough Council,http://statistics.data.gov.uk/id/local-authority/30UE,Central Support Services,1009,Governance,Furniture - Purchase,40012,"Equipment, Furniture & Materia",5023,DELIVERY COSTS,21/08/2013,90370,18.00,Revenue,Evac+Chair International Ltd,49344
Chorley Borough Council,http://statistics.data.gov.uk/id/local-authority/30UE,Unapportionable Central OHeads,1009,Governance,Furniture - Purchase,40012,"Equipment, Furniture & Materia",5023,DELIVERY COSTS,21/08/2013,90370,18.00,Revenue,Evac+Chair International Ltd,49344
Chorley Borough Council,http://statistics.data.gov.uk/id/local-authority/30UE,Central Support Services,1009,Governance,Furniture - Purchase,40012,"Equipment, Furniture & Materia",5023,"88336MD (without the SERVICE CARE OR COMFY SEATS)1-300-AMB - EVAC + CHAIR AMBULANCE MODEL",21/08/2013,90370,"1,025.70",Revenue,Evac+Chair International Ltd,49344
Chorley Borough Council,http://statistics.data.gov.uk/id/local-authority/30UE,Unapportionable Central OHeads,1009,Governance,Furniture - Purchase,40012,"Equipment, Furniture & Materia",5023,"88336MD (without the SERVICE CARE OR COMFY SEATS)1-300-AMB - EVAC + CHAIR AMBULANCE MODEL",21/08/2013,90370,"1,025.70",Revenue,Evac+Chair International Ltd,49344
Chorley Borough Council,http://statistics.data.gov.uk/id/local-authority/30UE,Service Management & Support,1009,Streetscene & Leisure Contracts,Grounds Maintenance Contractor,20043,Grounds Maintenance Costs,5013,Various tree works,14/08/2013,90273,"3,010.00",Revenue,Fassfern Forestry,54839
Chorley Borough Council,http://statistics.data.gov.uk/id/local-authority/30UE,Homelessness,1075,Housing,Fixtures & Fittings - Purchase,20027,Fixtures and Fittings,5010,"CH03B - Chester Gents Wardrobe Beech - ADDRESS REDACTED Supported Housing. Cotswold Road, Chorley. PR7 3HW",09/08/2013,90204,572.82,Revenue,Furniture Resource Centre Ltd,22085
Chorley Borough Council,http://statistics.data.gov.uk/id/local-authority/30UE,Democratic Represent and  Mgnt,1007,Streetscene & Leisure Contracts,Security Service,40062,Services,5027,All seasons Leisure Centre,23/08/2013,90450,138.79,Revenue,G4S Cash Solutions UK Ltd,22099
Chorley Borough Council,http://statistics.data.gov.uk/id/local-authority/30UE,Democratic Represent and  Mgnt,1007,Streetscene & Leisure Contracts,Security Service,40062,Services,5027,Brinscall swimming pool,23/08/2013,90450,47.49,Revenue,G4S Cash Solutions UK Ltd,22099
Chorley Borough Council,http://statistics.data.gov.uk/id/local-authority/30UE,Unapportionable Central OHeads,1009,Streetscene & Leisure Contracts,Security Service,40062,Services,5027,Civic Offices,23/08/2013,90450,47.49,Revenue,G4S Cash Solutions UK Ltd,22099
Chorley Borough Council,http://statistics.data.gov.uk/id/local-authority/30UE,Democratic Represent and  Mgnt,1007,Streetscene & Leisure Contracts,Security Service,40062,Services,5027,Clayton Green Sports Centre,23/08/2013,90450,47.49,Revenue,G4S Cash Solutions UK Ltd,22099
Chorley Borough Council,http://statistics.data.gov.uk/id/local-authority/30UE,Homelessness,1075,Streetscene & Leisure Contracts,Security Service,40062,Services,5027,Cotswold House,23/08/2013,90450,23.76,Revenue,G4S Cash Solutions UK Ltd,22099
Chorley Borough Council,http://statistics.data.gov.uk/id/local-authority/30UE,Community Safety Crime Reduct,1043,Health Environment & Neighbourhoods,Tools & Equipment - Purchase,40003,"Equipment, Furniture & Materia",5023,"8 x Black, Fruit of The Loom Polo shirts with Chorley Council name and logo embroidered 4 medium 2 large 2 extra large",21/08/2013,90436,302.05,Revenue,Galaxy Print,16914
Chorley Borough Council,http://statistics.data.gov.uk/id/local-authority/30UE,Business Support,1095,Governance,Gas,20014,Energy Costs,5006,Gas at Gillibrand Street,28/08/2013,90439,268.13,Revenue,Gazprom Energy,56502
Chorley Borough Council,http://statistics.data.gov.uk/id/local-authority/30UE,Corporate Management,1008,Health Environment & Neighbourhoods,Vandalism Repairs,20005,Repairs Maintenance & Alts,5005,12 month contract for the removal of Graffiti in accordance with contract conditions and value added cleaning work,09/08/2013,90164,"1,662.50",Revenue,Graffiti Removal (North) Ltd,17320
Chorley Borough Council,http://statistics.data.gov.uk/id/local-authority/30UE,Capital,Capital,Streetscene & Leisure Contracts,Other Contractor,3012,Capital Expenditure,Capital,3 Strainer boxes - supply and fitting at All Seasons as detailed in quote of 01/07/13,21/08/2013,90369,"2,971.00",Capital,H20 Servicing Ltd,21240
Chorley Borough Council,http://statistics.data.gov.uk/id/local-authority/30UE,Economic Development,1096,Economic Development,Promotional Expenses,40159,Miscellaneous Expenses,5034,To supply: x 200 Business Jigsaw Brochures as per quote no: 92256 From artwork supplied,07/08/2013,90122,251.00,Revenue,Haslam PrintersLtd,21777
Chorley Borough Council,http://statistics.data.gov.uk/id/local-authority/30UE,Unapportionable Central OHeads,1009,Governance,Tools & Equipment - Purchase,40003,"Equipment, Furniture & Materia",5023,2x Chorley Civic Crest Flags + 1x Union Flag 1.6mtrsq for union street.,21/08/2013,90379,358.80,Revenue,HoF Display Solutions,49100
Chorley Borough Council,http://statistics.data.gov.uk/id/local-authority/30UE,Unapportionable Central OHeads,1009,Governance,Asset Maintenance Fund,20012,Repairs Maintenance & Alts,5005,4 X Union Jack Flags 3.2mtrsq.,21/08/2013,90380,332.50,Revenue,HoF Display Solutions,49100
Chorley Borough Council,http://statistics.data.gov.uk/id/local-authority/30UE,Democratic Represent and  Mgnt,1007,Governance,Other Contributions,40145,Grants and Subscriptions,5031,Donation from the Mayors Charity Appeal 2012-13,09/08/2013,90140,"2,500.00",Revenue,Home-Start,20585
Chorley Borough Council,http://statistics.data.gov.uk/id/local-authority/30UE,Business Support,1095,Governance,Burglar Alarms & Security Systems,20075,Fixtures and Fittings,5010,Gillibrand Street - call out charges and subsequent fitting of new detectors in June 2013,16/08/2013,90086,585.87,Revenue,Honeywell - Novar Systems Ltd,16689
Chorley Borough Council,http://statistics.data.gov.uk/id/local-authority/30UE,Economic Development,1096,Economic Development,Grants To Other Organisations,40127,Grants and Subscriptions,5031,Starting in business grant,14/08/2013,90083,750.00,Revenue,NAME REDACTED,60832
Chorley Borough Council,http://statistics.data.gov.uk/id/local-authority/30UE,Central Support Services,1009,"Customer, ICT & Transactional",Consultants` Fees,40077,Services,5027,Services provided during July 2013 10 days on ICT strategy as agreed,09/08/2013,90090,"1,800.00",Revenue,REDACTED PERSONAL DATA,21745
Chorley Borough Council,http://statistics.data.gov.uk/id/local-authority/30UE,Unapportionable Central OHeads,1009,"Customer, ICT & Transactional",Consultants` Fees,40077,Services,5027,Services provided during July 2013 on Service Migration Plan as agreed,09/08/2013,90090,200.00,Revenue,REDACTED PERSONAL DATA,21745
Chorley Borough Council,http://statistics.data.gov.uk/id/local-authority/30UE,Corporate Management,1008,Shared Service Arrangement,Employee Related Insurance,18003,Indirect Employee Expenses,5002,Addition of falling trees peril,28/08/2013,90121,587.83,Revenue,JLT Speciality Ltd,52747
Chorley Borough Council,http://statistics.data.gov.uk/id/local-authority/30UE,Democratic Represent and  Mgnt,1007,Streetscene & Leisure Contracts,Grounds Maintenance Contractor,20043,Grounds Maintenance Costs,5013,50 Kneerail straps  @75mm,21/08/2013,90147,97.20,Revenue,John H Mayor & Sons Ltd,16635
Chorley Borough Council,http://statistics.data.gov.uk/id/local-authority/30UE,Cemetery Cremation & Mortuary,1041,Streetscene & Leisure Contracts,General Repairs,20004,Repairs Maintenance & Alts,5005,1 roll of 3`` drainage pipe,21/08/2013,90147,71.40,Revenue,John H Mayor & Sons Ltd,16635
Chorley Borough Council,http://statistics.data.gov.uk/id/local-authority/30UE,Service Management & Support,1009,Streetscene & Leisure Contracts,Supplies-Grounds Maintenance,40025,"Equipment, Furniture & Materia",5023,Supply 80 lengths of decking boards cut to 1.2metres,21/08/2013,90147,144.00,Revenue,John H Mayor & Sons Ltd,16635
Chorley Borough Council,http://statistics.data.gov.uk/id/local-authority/30UE,Service Management & Support,1009,Streetscene & Leisure Contracts,Supplies-Grounds Maintenance,40025,"Equipment, Furniture & Materia",5023,Supply decking screws 3`` in length,21/08/2013,90147,24.00,Revenue,John H Mayor & Sons Ltd,16635
Chorley Borough Council,http://statistics.data.gov.uk/id/local-authority/30UE,Service Management & Support,1009,Streetscene & Leisure Contracts,Supplies-Grounds Maintenance,40025,"Equipment, Furniture & Materia",5023,Supply antislip decing treatment solution,21/08/2013,90147,48.00,Revenue,John H Mayor & Sons Ltd,16635
Chorley Borough Council,http://statistics.data.gov.uk/id/local-authority/30UE,Service Management & Support,1009,Streetscene & Leisure Contracts,Supplies-Grounds Maintenance,40025,"Equipment, Furniture & Materia",5023,10 lengths decking board 1.2m,21/08/2013,90147,481.08,Revenue,John H Mayor & Sons Ltd,16635
Chorley Borough Council,http://statistics.data.gov.uk/id/local-authority/30UE,Development Control,1091,Planning,Statutory Notices,40160,Miscellaneous Expenses,5034,Planning Public Notices to appear in the Chorley Guardian average cost 322.61 per insertion  April 2013 - March 2014,02/08/2013,89916,285.17,Revenue,Johnston Publishing Ltd,20072
Chorley Borough Council,http://statistics.data.gov.uk/id/local-authority/30UE,Development Control,1091,Planning,Statutory Notices,40160,Miscellaneous Expenses,5034,Planning Public Notices to appear in the Chorley Guardian average cost 322.61 per insertion  April 2013 - March 2014,09/08/2013,90199,271.59,Revenue,Johnston Publishing Ltd,20072
Chorley Borough Council,http://statistics.data.gov.uk/id/local-authority/30UE,Development Control,1091,Planning,Statutory Notices,40160,Miscellaneous Expenses,5034,Planning Public Notices to appear in the Chorley Guardian average cost 322.61 per insertion  April 2013 - March 2014,16/08/2013,90278,258.01,Revenue,Johnston Publishing Ltd,20072
Chorley Borough Council,http://statistics.data.gov.uk/id/local-authority/30UE,Central Support Services,1009,Policy & Performance,Publicity - Advertising,40157,Miscellaneous Expenses,5034,Summer events advertising for Chorley Guardian,28/08/2013,90279,420.98,Revenue,Johnston Publishing Ltd,20072
Chorley Borough Council,http://statistics.data.gov.uk/id/local-authority/30UE,Development Control,1091,Planning,Statutory Notices,40160,Miscellaneous Expenses,5034,Planning Public Notices to appear in the Chorley Guardian average cost 322.61 per insertion  April 2013 - March 2014,23/08/2013,90415,312.33,Revenue,Johnston Publishing Ltd,20072
Chorley Borough Council,http://statistics.data.gov.uk/id/local-authority/30UE,Corporate Management,1008,Health Environment & Neighbourhoods,Impounded Dogs Costs,40207,Miscellaneous Expenses,5034,Kennelling fees for 2013/14,09/08/2013,90172,780.00,Revenue,K A Dewhurst,16734
Chorley Borough Council,http://statistics.data.gov.uk/id/local-authority/30UE,Corporate Management,1008,Health Environment & Neighbourhoods,Miscellaneous Expenses,40200,Miscellaneous Expenses,5034,Dirty dog campaign for 2013/4,23/08/2013,90462,457.50,Revenue,Karen Chisholm,56874
Chorley Borough Council,http://statistics.data.gov.uk/id/local-authority/30UE,Community Safety Crime Reduct,1043,Health Environment & Neighbourhoods,Miscellaneous Expenses,40200,Miscellaneous Expenses,5034,Dirty dog campaign for 2013/4,23/08/2013,90463,555.00,Revenue,Karen Chisholm,56874
Chorley Borough Council,http://statistics.data.gov.uk/id/local-authority/30UE,Corporate Management,1008,Health Environment & Neighbourhoods,Miscellaneous Expenses,40200,Miscellaneous Expenses,5034,Dirty dog campaign for 2013/4,23/08/2013,90467,442.50,Revenue,Karen Chisholm,56874
Chorley Borough Council,http://statistics.data.gov.uk/id/local-authority/30UE,Corporate Management,1008,Health Environment & Neighbourhoods,Miscellaneous Expenses,40200,Miscellaneous Expenses,5034,Dirty dog campaign for 2013/4,23/08/2013,90468,558.00,Revenue,Karen Chisholm,56874
Chorley Borough Council,http://statistics.data.gov.uk/id/local-authority/30UE,Community Safety Crime Reduct,1043,Health Environment & Neighbourhoods,Miscellaneous Expenses,40200,Miscellaneous Expenses,5034,Dirty dog campaign for 2013/4,23/08/2013,90470,300.00,Revenue,Karen Chisholm,56874
Chorley Borough Council,http://statistics.data.gov.uk/id/local-authority/30UE,Community Safety Crime Reduct,1043,Health Environment & Neighbourhoods,Miscellaneous Expenses,40200,Miscellaneous Expenses,5034,Dirty dog campaign for 2013/4,23/08/2013,90471,337.50,Revenue,Karen Chisholm,56874
Chorley Borough Council,http://statistics.data.gov.uk/id/local-authority/30UE,Economic Development,1096,Economic Development,Grants To Other Organisations,40127,Grants and Subscriptions,5031,Starting in business grant,02/08/2013,90044,642.53,Revenue,NAME REDACTED,60752
Chorley Borough Council,http://statistics.data.gov.uk/id/local-authority/30UE,Control Accounts,Control,Shared Service Arrangement,General Balances,100,Balance Sheet,Balance,August deduction,21/08/2013,90403,971.08,Revenue,Labour Councillors Association,17577
Chorley Borough Council,http://statistics.data.gov.uk/id/local-authority/30UE,Elections,1012,Governance,Rent/Hire Of Premises,20017,Premises Rents,5007,Use of schools for polling stations on 2nd May 2013,07/08/2013,90127,"2,124.04",Revenue,Lancashire County Council,17758
Chorley Borough Council,http://statistics.data.gov.uk/id/local-authority/30UE,Capital,Capital,Housing,Grants,3002,Capital Expenditure,Capital,Capital Works - Disable Facility Grant,21/08/2013,90352,"1,329.00",Capital,Lancashire County Council,17758
Chorley Borough Council,http://statistics.data.gov.uk/id/local-authority/30UE,Capital,Capital,Housing,Grants,3002,Capital Expenditure,Capital,Capital Works - Disable Facility Grant,21/08/2013,90353,606.00,Capital,Lancashire County Council,17758
Chorley Borough Council,http://statistics.data.gov.uk/id/local-authority/30UE,Unapportionable Central OHeads,1009,HR & Org. Development,Corp Training Organisational Development,17006,Indirect Employee Expenses,5002,"Training Course - Managing People at Work with Anxiety, Depression & Stress held on 10 April 2013",21/08/2013,89736,915.00,Revenue,Lancashire Mind Ltd,18578
Chorley Borough Council,http://statistics.data.gov.uk/id/local-authority/30UE,Central Support Services,1009,HR & Org. Development,Corp Training Organisational Development,17006,Indirect Employee Expenses,5002,Mental Health Awareness Training Course held on 24 April 2013,21/08/2013,89737,915.00,Revenue,Lancashire Mind Ltd,18578
Chorley Borough Council,http://statistics.data.gov.uk/id/local-authority/30UE,Democratic Represent and  Mgnt,1007,Health Environment & Neighbourhoods,Children's Activities,40188,Miscellaneous Expenses,5034,Provision of Wednesday night trampoline and fun sports sessions throughout August,28/08/2013,90537,297.00,Revenue,Lancashire TAAG,57169
Chorley Borough Council,http://statistics.data.gov.uk/id/local-authority/30UE,Democratic Represent and  Mgnt,1007,Health Environment & Neighbourhoods,Children's Activities,40188,Miscellaneous Expenses,5034,Hire of facility and trampoline coach for summer holiday programme,28/08/2013,90538,655.00,Revenue,Lancashire TAAG,57169
Chorley Borough Council,http://statistics.data.gov.uk/id/local-authority/30UE,Corporate Management,1008,Streetscene & Leisure Contracts,Clinical Waste Collection,50007,Private Contractors,5042,Disposal of clinical waste form Chorley Households. Yellow bag collection FY 2013 / 2014 March to April Approx. 550 bags,07/08/2013,90029,986.48,Revenue,Lancashire Teaching Hospitals NHS FT,19003
Chorley Borough Council,http://statistics.data.gov.uk/id/local-authority/30UE,Homelessness,1075,Housing,Miscellaneous Expenses,40200,Miscellaneous Expenses,5034,Translation of the Chorley Borough Council duty licence document from English to Lithuanian.,14/08/2013,90248,364.70,Revenue,Language Line Ltd,16342
Chorley Borough Council,http://statistics.data.gov.uk/id/local-authority/30UE,Parking Services,1066,Streetscene & Leisure Contracts,External Contractors,50008,Private Contractors,5042,enforcement and cash collection for off street car parks.,07/08/2013,90085,"5,216.09",Revenue,Legion Group,21973
Chorley Borough Council,http://statistics.data.gov.uk/id/local-authority/30UE,Unapportionable Central OHeads,1009,Governance,General Subscriptions,40146,Grants and Subscriptions,5031,Stone Justice Manual,30/08/2013,90214,310.67,Revenue,Lexis Nexis UK,16688
Chorley Borough Council,http://statistics.data.gov.uk/id/local-authority/30UE,Central Support Services,1009,Governance,General Subscriptions,40146,Grants and Subscriptions,5031,Stone Justice Manual,30/08/2013,90214,292.58,Revenue,Lexis Nexis UK,16688
Chorley Borough Council,http://statistics.data.gov.uk/id/local-authority/30UE,Unapportionable Central OHeads,1009,Governance,General Subscriptions,40146,Grants and Subscriptions,5031,Stone Justice Manual,30/08/2013,90214,5.45,Revenue,Lexis Nexis UK,16688
Chorley Borough Council,http://statistics.data.gov.uk/id/local-authority/30UE,Local Tax Collection,1010,"Customer, ICT & Transactional",Publications,40054,"Printing, Stationery & General",5026,Ryde on rating,30/08/2013,90270,289.45,Revenue,Lexis Nexis UK,16688
Chorley Borough Council,http://statistics.data.gov.uk/id/local-authority/30UE,Central Support Services,1009,Governance,External Contractors,50008,Private Contractors,5042,Core & Reactive service charge,14/08/2013,90089,"42,320.42",Revenue,Liberata UK,20716
Chorley Borough Council,http://statistics.data.gov.uk/id/local-authority/30UE,Capital,Capital,Governance,Consultants Fees,3025,Capital Expenditure,Capital,Management fee on capital projects,14/08/2013,90089,"5,209.62",Capital,Liberata UK,20716
Chorley Borough Council,http://statistics.data.gov.uk/id/local-authority/30UE,Unapportionable Central OHeads,1009,Governance,External Contractors,50008,Private Contractors,5042,June work in progress,21/08/2013,90293,"7,250.04",Revenue,Liberata UK,20716
Chorley Borough Council,http://statistics.data.gov.uk/id/local-authority/30UE,Central Support Services,1009,Governance,Asset Maintenance Fund,20012,Repairs Maintenance & Alts,5005,Pass through work,28/08/2013,90387,"6,096.32",Revenue,Liberata UK,20716
Chorley Borough Council,http://statistics.data.gov.uk/id/local-authority/30UE,Unapportionable Central OHeads,1009,Governance,Asset Maintenance Fund,20012,Repairs Maintenance & Alts,5005,Improvement Works,30/08/2013,90388,"14,503.64",Revenue,Liberata UK,20716
Chorley Borough Council,http://statistics.data.gov.uk/id/local-authority/30UE,Unapportionable Central OHeads,1009,Governance,Asset Maintenance Fund,20012,Repairs Maintenance & Alts,5005,Work in progress,28/08/2013,90389,"8,173.92",Revenue,Liberata UK,20716
Chorley Borough Council,http://statistics.data.gov.uk/id/local-authority/30UE,Central Support Services,1009,Governance,Asset Maintenance Fund,20012,Repairs Maintenance & Alts,5005,Pass through work,30/08/2013,90390,"2,280.37",Revenue,Liberata UK,20716
Chorley Borough Council,http://statistics.data.gov.uk/id/local-authority/30UE,Unapportionable Central OHeads,1009,Governance,Asset Maintenance Fund,20012,Repairs Maintenance & Alts,5005,Improvement works,30/08/2013,90391,"22,409.77",Revenue,Liberata UK,20716
Chorley Borough Council,http://statistics.data.gov.uk/id/local-authority/30UE,Democratic Represent and  Mgnt,1007,Health Environment & Neighbourhoods,Children's Activities,40188,Miscellaneous Expenses,5034,Delivery of outdoor adventure week for summer holiday programme,23/08/2013,90476,"2,500.00",Revenue,Lister Logic LTD,22431
Chorley Borough Council,http://statistics.data.gov.uk/id/local-authority/30UE,Community Development,1097,Policy & Performance,Grants To Other Organisations,40127,Grants and Subscriptions,5031,Funding for provision of food bank,23/08/2013,90398,"5,000.00",Revenue,Living Waters Storehouse,60925
Chorley Borough Council,http://statistics.data.gov.uk/id/local-authority/30UE,Capital,Capital,Housing,Grants,3002,Capital Expenditure,Capital,Capital works - Disabled Facility Grant,30/08/2013,90540,"3,160.00",Capital,M.J Park Building Contractors,20367
Chorley Borough Council,http://statistics.data.gov.uk/id/local-authority/30UE,Service Management & Support,1009,Streetscene & Leisure Contracts,External Contractor,40198,Miscellaneous Expenses,5034,"Clean stonework to existing boundary wall approximately 112m length x 600mm high, all faces with a water wash spray",23/08/2013,90475,"1,388.00",Revenue,Mather & Ellis Ltd,58150
Chorley Borough Council,http://statistics.data.gov.uk/id/local-authority/30UE,Corporate Management,1008,HR & Org. Development,Agency Staff,13000,Direct Employee Expenses,5001,PAYE Environmental Health Officer SA60648 0.43,14/08/2013,89926,1.72,Revenue,Matrix SCM Ltd,22128
Chorley Borough Council,http://statistics.data.gov.uk/id/local-authority/30UE,Flood Defence & Land Drainage,1046,HR & Org. Development,Agency Staff,13000,Direct Employee Expenses,5001,PAYE Environmental Health Officer SA60648 20.85,14/08/2013,89926,317.97,Revenue,Matrix SCM Ltd,22128
Chorley Borough Council,http://statistics.data.gov.uk/id/local-authority/30UE,Central Support Services,1009,HR & Org. Development,Agency Staff,13000,Direct Employee Expenses,5001,PAYE Economic Development Assistant SA64959 10.80,14/08/2013,89926,313.20,Revenue,Matrix SCM Ltd,22128
Chorley Borough Council,http://statistics.data.gov.uk/id/local-authority/30UE,Corporate Management,1008,HR & Org. Development,Agency Staff,13000,Direct Employee Expenses,5001,PAYE Environmental Health Officer SA60648 0.43,14/08/2013,90079,5.16,Revenue,Matrix SCM Ltd,22128
Chorley Borough Council,http://statistics.data.gov.uk/id/local-authority/30UE,Flood Defence & Land Drainage,1046,HR & Org. Development,Agency Staff,13000,Direct Employee Expenses,5001,PAYE Environmental Health Officer SA60648 20.85,14/08/2013,90079,317.97,Revenue,Matrix SCM Ltd,22128
Chorley Borough Council,http://statistics.data.gov.uk/id/local-authority/30UE,Corporate Management,1008,HR & Org. Development,Agency Staff,13000,Direct Employee Expenses,5001,PAYE Environmental Health Officer SA60648 20.85,14/08/2013,90181,312.76,Revenue,Matrix SCM Ltd,22128
Chorley Borough Council,http://statistics.data.gov.uk/id/local-authority/30UE,Central Support Services,1009,HR & Org. Development,Agency Staff,13000,Direct Employee Expenses,5001,PAYE Economic Development Assistant SA64959 10.80,14/08/2013,90181,747.90,Revenue,Matrix SCM Ltd,22128
Chorley Borough Council,http://statistics.data.gov.uk/id/local-authority/30UE,Central Support Services,1009,HR & Org. Development,Agency Staff,13000,Direct Employee Expenses,5001,PAYE Economic Development Assistant SA64959 10.80,21/08/2013,90349,391.50,Revenue,Matrix SCM Ltd,22128
Chorley Borough Council,http://statistics.data.gov.uk/id/local-authority/30UE,Service Management & Support,1009,Streetscene & Leisure Contracts,Supplies-Highways,40026,"Equipment, Furniture & Materia",5023,Supply street name plate FAR NOOK with cul de sac sign x 2  to Chorley Council spec on rails at price quoted,30/08/2013,90516,56.88,Revenue,Midland Signs (Leicester) Ltd,16606
Chorley Borough Council,http://statistics.data.gov.uk/id/local-authority/30UE,Service Management & Support,1009,Streetscene & Leisure Contracts,Supplies-Highways,40026,"Equipment, Furniture & Materia",5023,Supply street name plate CUNNINGHAM AVENUE No`s 1 - 15 with cul de sac sign to Chorley Council spec on rails x 2,30/08/2013,90516,99.04,Revenue,Midland Signs (Leicester) Ltd,16606
Chorley Borough Council,http://statistics.data.gov.uk/id/local-authority/30UE,Service Management & Support,1009,Streetscene & Leisure Contracts,Supplies-Highways,40026,"Equipment, Furniture & Materia",5023,Supply street name THE WILLOWS to Chorley Council spec on rails at price quoted,30/08/2013,90516,26.18,Revenue,Midland Signs (Leicester) Ltd,16606
Chorley Borough Council,http://statistics.data.gov.uk/id/local-authority/30UE,Service Management & Support,1009,Streetscene & Leisure Contracts,Supplies-Highways,40026,"Equipment, Furniture & Materia",5023,Supply street name plate STONEY HOLT to Chorley spec on rails at price quoted,30/08/2013,90516,26.18,Revenue,Midland Signs (Leicester) Ltd,16606
Chorley Borough Council,http://statistics.data.gov.uk/id/local-authority/30UE,Service Management & Support,1009,Streetscene & Leisure Contracts,Supplies-Highways,40026,"Equipment, Furniture & Materia",5023,Supply street name plate COLTSFOOT DRIVE to Chorley spec on rails at price quoted,30/08/2013,90516,30.72,Revenue,Midland Signs (Leicester) Ltd,16606
Chorley Borough Council,http://statistics.data.gov.uk/id/local-authority/30UE,Service Management & Support,1009,Streetscene & Leisure Contracts,Supplies-Highways,40026,"Equipment, Furniture & Materia",5023,Supply street name plate BREDON AVENUE Nos 84 - 108 to Chorley spec on rails at price quoted,30/08/2013,90516,43.28,Revenue,Midland Signs (Leicester) Ltd,16606
Chorley Borough Council,http://statistics.data.gov.uk/id/local-authority/30UE,Service Management & Support,1009,Streetscene & Leisure Contracts,Supplies-Highways,40026,"Equipment, Furniture & Materia",5023,Supply street name plate RUNSHAW LANE to Chorley spec on rails at price quoted,30/08/2013,90516,27.32,Revenue,Midland Signs (Leicester) Ltd,16606
Chorley Borough Council,http://statistics.data.gov.uk/id/local-authority/30UE,Service Management & Support,1009,Streetscene & Leisure Contracts,Supplies-Highways,40026,"Equipment, Furniture & Materia",5023,Supply street name plate No`s 4 - 23 to Chorley spec on rails at price quoted,30/08/2013,90516,26.18,Revenue,Midland Signs (Leicester) Ltd,16606
Chorley Borough Council,http://statistics.data.gov.uk/id/local-authority/30UE,Service Management & Support,1009,Streetscene & Leisure Contracts,Supplies-Highways,40026,"Equipment, Furniture & Materia",5023,Supply street name plate No`s 24 - 34 to Chorley spec on rails at price quoted,30/08/2013,90516,26.18,Revenue,Midland Signs (Leicester) Ltd,16606
Chorley Borough Council,http://statistics.data.gov.uk/id/local-authority/30UE,Service Management & Support,1009,Streetscene & Leisure Contracts,Supplies-Highways,40026,"Equipment, Furniture & Materia",5023,Supply street name plate COWLING ROAD to Chorley spec spec on rails at price quoted,30/08/2013,90516,27.32,Revenue,Midland Signs (Leicester) Ltd,16606
Chorley Borough Council,http://statistics.data.gov.uk/id/local-authority/30UE,Service Management & Support,1009,Streetscene & Leisure Contracts,Supplies-Highways,40026,"Equipment, Furniture & Materia",5023,Supply stret name plate FARRINGTON STREET to Chorley spec on rails at price quoted,30/08/2013,90516,33.02,Revenue,Midland Signs (Leicester) Ltd,16606
Chorley Borough Council,http://statistics.data.gov.uk/id/local-authority/30UE,Democratic Represent and  Mgnt,1007,Health Environment & Neighbourhoods,Children's Activities,40188,Miscellaneous Expenses,5034,Delivery of dance workshops during summer holiday programme,28/08/2013,90536,540.00,Revenue,Miss Toni - Jane Ibbison,22326
Chorley Borough Council,http://statistics.data.gov.uk/id/local-authority/30UE,Democratic Represent and  Mgnt,1007,Governance,Computer Software-Maintenance,40107,Communication and Computing,5028,Support fee for Moderngov for 01/08/13 to 31/07/14,14/08/2013,90296,"6,670.00",Revenue,Modern Mindset LTD,51367
Chorley Borough Council,http://statistics.data.gov.uk/id/local-authority/30UE,Development Control,1091,Planning,Refunds,40220,Miscellaneous Expenses,5034,Refund of withdrawn planning application,02/08/2013,89587,770.00,Revenue,NAME REDACTED,60400
Chorley Borough Council,http://statistics.data.gov.uk/id/local-authority/30UE,Economic Development,1096,Economic Development,Grants To Other Organisations,40127,Grants and Subscriptions,5031,Starting in business grant,28/08/2013,90497,583.39,Revenue,NAME REDACTED,61161
Chorley Borough Council,http://statistics.data.gov.uk/id/local-authority/30UE,Unapportionable Central OHeads,1009,Policy & Performance,Exhibitions & Special Events,40158,Miscellaneous Expenses,5034,Writsbands for the Chorley Live event,07/08/2013,90137,705.00,Revenue,Munco International T/A Adband,60837
Chorley Borough Council,http://statistics.data.gov.uk/id/local-authority/30UE,Service Management & Support,1009,Streetscene & Leisure Contracts,Registered Plant - Maintenance,40247,"Equipment, Furniture & Materia",5023,Supply cylinder bearings for John Deere 900 triple mowers,07/08/2013,90078,603.59,Revenue,MW Grass Machinery,21616
Chorley Borough Council,http://statistics.data.gov.uk/id/local-authority/30UE,Community Safety Crime Reduct,1043,Health Environment & Neighbourhoods,Miscellaneous Expenses,40200,Miscellaneous Expenses,5034,Vaccinations and worming for a further three months.,09/08/2013,90175,394.92,Revenue,Myerscough Veterinary Group,56978
Chorley Borough Council,http://statistics.data.gov.uk/id/local-authority/30UE,Community Development,1097,Policy & Performance,Grants To Other Organisations,40127,Grants and Subscriptions,5031,"4000 x A4 leaflets for the Credit Union, in 4 designs",07/08/2013,90102,543.00,Revenue,N B Colour Print Ltd,17917
Chorley Borough Council,http://statistics.data.gov.uk/id/local-authority/30UE,Unapportionable Central OHeads,1009,Policy & Performance,Publicity - Advertising,40157,Miscellaneous Expenses,5034,Printing of the WHAT`S HAPPENING MAGAZINE July - October edition,07/08/2013,90125,"3,583.00",Revenue,N B Colour Print Ltd,17917
Chorley Borough Council,http://statistics.data.gov.uk/id/local-authority/30UE,Central Support Services,1009,Chief Executives Office,Furniture - Maintenance,40014,"Equipment, Furniture & Materia",5023,Annual Maintenance on IJ35 Franking Machine from April 2013 to March 2014,28/08/2013,90502,275.00,Revenue,Nationwide Franking Sense,22546
Chorley Borough Council,http://statistics.data.gov.uk/id/local-authority/30UE,Democratic Represent and  Mgnt,1007,Streetscene & Leisure Contracts,Other Fees,40212,Miscellaneous Expenses,5034,Yarrow Valley Play Area signage - design fees and liasing with contractor,09/08/2013,90174,482.00,Revenue,Newground CIC,22064
Chorley Borough Council,http://statistics.data.gov.uk/id/local-authority/30UE,Unapportionable Central OHeads,1009,Policy & Performance,Publicity - Advertising,40157,Miscellaneous Expenses,5034,Ad feature in a Great Days Out booklet,07/08/2013,90110,295.00,Revenue,Newsquest (Lancashire) Limited,18117
Chorley Borough Council,http://statistics.data.gov.uk/id/local-authority/30UE,Unapportionable Central OHeads,1009,Policy & Performance,Exhibitions & Special Events,40158,Miscellaneous Expenses,5034,Summer event advertising in the Chorley Citizen,28/08/2013,90505,297.00,Revenue,Newsquest (Lancashire) Limited,18117
Chorley Borough Council,http://statistics.data.gov.uk/id/local-authority/30UE,Development Control,1091,Planning,Refunds,40220,Miscellaneous Expenses,5034,Refund of overpayment in respect of planning application,23/08/2013,90445,270.00,Revenue,NIS Limited,61016
Chorley Borough Council,http://statistics.data.gov.uk/id/local-authority/30UE,Central Support Services,1009,"Customer, ICT & Transactional",Computer Software-Purchase,40100,Communication and Computing,5028,Web services licenses,21/08/2013,90335,500.00,Revenue,Northgate Information Solutions UK Limited,18285
Chorley Borough Council,http://statistics.data.gov.uk/id/local-authority/30UE,Central Support Services,1009,"Customer, ICT & Transactional",Consultants` Fees,40077,Services,5027,Installation of web services,21/08/2013,90335,750.00,Revenue,Northgate Information Solutions UK Limited,18285
Chorley Borough Council,http://statistics.data.gov.uk/id/local-authority/30UE,Democratic Represent and  Mgnt,1007,Streetscene & Leisure Contracts,Hire Of Transport,30028,Contrct Hire & Operating Lease,5018,Hire NK13YPT JULY,30/08/2013,90094,509.29,Revenue,Northgate Vehicle Hire (NW) Ltd,17360
Chorley Borough Council,http://statistics.data.gov.uk/id/local-authority/30UE,Service Management & Support,1009,Streetscene & Leisure Contracts,Hire Of Transport,30028,Contrct Hire & Operating Lease,5018,Hire NJ10OVN,30/08/2013,90094,407.43,Revenue,Northgate Vehicle Hire (NW) Ltd,17360
Chorley Borough Council,http://statistics.data.gov.uk/id/local-authority/30UE,Service Management & Support,1009,Streetscene & Leisure Contracts,Hire Of Transport,30028,Contrct Hire & Operating Lease,5018,Hire NJ10OXP,30/08/2013,90094,407.43,Revenue,Northgate Vehicle Hire (NW) Ltd,17360
Chorley Borough Council,http://statistics.data.gov.uk/id/local-authority/30UE,Service Management & Support,1009,Streetscene & Leisure Contracts,Hire Of Transport,30028,Contrct Hire & Operating Lease,5018,Hire NJ10OTK,30/08/2013,90094,407.43,Revenue,Northgate Vehicle Hire (NW) Ltd,17360
Chorley Borough Council,http://statistics.data.gov.uk/id/local-authority/30UE,Service Management & Support,1009,Streetscene & Leisure Contracts,Hire Of Transport,30028,Contrct Hire & Operating Lease,5018,Hire NJ10OXG,30/08/2013,90094,407.43,Revenue,Northgate Vehicle Hire (NW) Ltd,17360
Chorley Borough Council,http://statistics.data.gov.uk/id/local-authority/30UE,Community Safety Crime Reduct,1043,Streetscene & Leisure Contracts,Hire Of Transport,30028,Contrct Hire & Operating Lease,5018,Hire NV60BVF,30/08/2013,90094,241.40,Revenue,Northgate Vehicle Hire (NW) Ltd,17360
Chorley Borough Council,http://statistics.data.gov.uk/id/local-authority/30UE,Service Management & Support,1009,Streetscene & Leisure Contracts,Hire Of Transport,30028,Contrct Hire & Operating Lease,5018,Hire NL12ONR,30/08/2013,90094,522.57,Revenue,Northgate Vehicle Hire (NW) Ltd,17360
Chorley Borough Council,http://statistics.data.gov.uk/id/local-authority/30UE,Service Management & Support,1009,Streetscene & Leisure Contracts,Hire Of Transport,30028,Contrct Hire & Operating Lease,5018,Hire NL12OFG,30/08/2013,90094,522.57,Revenue,Northgate Vehicle Hire (NW) Ltd,17360
Chorley Borough Council,http://statistics.data.gov.uk/id/local-authority/30UE,Service Management & Support,1009,Streetscene & Leisure Contracts,Hire Of Transport,30028,Contrct Hire & Operating Lease,5018,Hire NJ60KFK,30/08/2013,90094,413.81,Revenue,Northgate Vehicle Hire (NW) Ltd,17360
Chorley Borough Council,http://statistics.data.gov.uk/id/local-authority/30UE,Community Safety Crime Reduct,1043,Streetscene & Leisure Contracts,Hire Of Transport,30028,Contrct Hire & Operating Lease,5018,Hire NX62UCS,30/08/2013,90094,251.23,Revenue,Northgate Vehicle Hire (NW) Ltd,17360
Chorley Borough Council,http://statistics.data.gov.uk/id/local-authority/30UE,Service Management & Support,1009,Streetscene & Leisure Contracts,Hire Of Transport,30028,Contrct Hire & Operating Lease,5018,Hire of 17 seater minibus for Northwest in bloom judging on 17/07/2013 to be delivered to Bengal St depot,30/08/2013,90094,63.40,Revenue,Northgate Vehicle Hire (NW) Ltd,17360
Chorley Borough Council,http://statistics.data.gov.uk/id/local-authority/30UE,Service Management & Support,1009,Streetscene & Leisure Contracts,Hire Of Transport,30028,Contrct Hire & Operating Lease,5018,Panel van,30/08/2013,90094,85.18,Revenue,Northgate Vehicle Hire (NW) Ltd,17360
Chorley Borough Council,http://statistics.data.gov.uk/id/local-authority/30UE,Parking Services,1066,Chief Executives Office,Electricity,20013,Energy Costs,5006,Un-metered Car Park Lighting,14/08/2013,90344,904.56,Revenue,Npower Commercial Gas,16814
Chorley Borough Council,http://statistics.data.gov.uk/id/local-authority/30UE,Parking Services,1066,Chief Executives Office,Electricity,20013,Energy Costs,5006,Un-metered - Pay and Display Machines,14/08/2013,90344,98.50,Revenue,Npower Commercial Gas,16814
Chorley Borough Council,http://statistics.data.gov.uk/id/local-authority/30UE,Culture & Heritage,1036,Chief Executives Office,Electricity,20013,Energy Costs,5006,Un-metered CCTV Cameras,14/08/2013,90344,242.81,Revenue,Npower Commercial Gas,16814
Chorley Borough Council,http://statistics.data.gov.uk/id/local-authority/30UE,Corporate Management,1008,Policy & Performance,Consultants` Fees,40077,Services,5027,"Full postal survey of residents, including questionnaire, postage, response collation etc",14/08/2013,90165,"6,500.00",Revenue,NWA Social & Market Research Limited,20931
Chorley Borough Council,http://statistics.data.gov.uk/id/local-authority/30UE,Community Development,1097,Policy & Performance,Grants To Other Organisations,40127,Grants and Subscriptions,5031,"Essentials Modular Reception Bundle Deal Product Code: 93081CH Priced at 389 ( For Delivery by 2nd August",21/08/2013,90416,389.00,Revenue,Office Furniture Online,60744
Chorley Borough Council,http://statistics.data.gov.uk/id/local-authority/30UE,Service Management & Support,1009,Streetscene & Leisure Contracts,External Contractor,40198,Miscellaneous Expenses,5034,Signs and Posts for Longfield Ave play area,16/08/2013,90338,250.80,Revenue,P F Cusack (Tool Supplies) Ltd,21963
Chorley Borough Council,http://statistics.data.gov.uk/id/local-authority/30UE,Democratic Represent and  Mgnt,1007,Streetscene & Leisure Contracts,Performing Rights Society Fees,40148,Grants and Subscriptions,5031,"Annual payment to PRS for Astley Hall, Coach House and Walled Garden",02/08/2013,90062,294.99,Revenue,Performing Right Society Ltd,19909
Chorley Borough Council,http://statistics.data.gov.uk/id/local-authority/30UE,Central Support Services,1009,Policy & Performance,Exhibitions & Special Events,40158,Miscellaneous Expenses,5034,Sports in the park activities.,28/08/2013,90508,"2,515.00",Revenue,Peter Johnson Entertainments Ltd,47621
Chorley Borough Council,http://statistics.data.gov.uk/id/local-authority/30UE,Corporate Management,1008,Health Environment & Neighbourhoods,External Contractor,40198,Miscellaneous Expenses,5034,50 weeks @ 330.00 for 2013/14,09/08/2013,90166,311.75,Revenue,Peter L Johnson,16727
Chorley Borough Council,http://statistics.data.gov.uk/id/local-authority/30UE,Community Safety Crime Reduct,1043,Health Environment & Neighbourhoods,External Contractor,40198,Miscellaneous Expenses,5034,50 weeks @ 330.00 for 2013/14,14/08/2013,90297,311.75,Revenue,Peter L Johnson,16727
Chorley Borough Council,http://statistics.data.gov.uk/id/local-authority/30UE,Democratic Represent and  Mgnt,1007,Governance,Performing Rights Society Fees,40148,Grants and Subscriptions,5031,PPL Music Licence from 15th July 2013 to 14th July 2014.,14/08/2013,90339,428.02,Revenue,Phonographic Performance Limited,21456
Chorley Borough Council,http://statistics.data.gov.uk/id/local-authority/30UE,Community Development,1097,Policy & Performance,Grants To Other Organisations,40127,Grants and Subscriptions,5031,Signage for ADDRESS REDACTED,14/08/2013,90148,530.06,Revenue,Poppy Signs Ltd,21898
Chorley Borough Council,http://statistics.data.gov.uk/id/local-authority/30UE,Unapportionable Central OHeads,1009,Policy & Performance,Exhibitions & Special Events,40158,Miscellaneous Expenses,5034,6 banners for Theatre in the Park and Sports in the Park,28/08/2013,90237,333.00,Revenue,Poppy Signs Ltd,21898
Chorley Borough Council,http://statistics.data.gov.uk/id/local-authority/30UE,Parking Services,1066,Streetscene & Leisure Contracts,Signs:Provision & Maintenance,20065,Grounds Maintenance Costs,5013,"Installation for parking welcome sign at Flat Iron car park",28/08/2013,90514,419.98,Revenue,Poppy Signs Ltd,21898
Chorley Borough Council,http://statistics.data.gov.uk/id/local-authority/30UE,Democratic Represent and  Mgnt,1007,Streetscene & Leisure Contracts,Miscellaneous Expenses,40200,Miscellaneous Expenses,5034,Astley Park Development Plan Consultation - 12 x A1 digital prints + mounting to foam board,28/08/2013,90531,270.00,Revenue,Poppy Signs Ltd,21898
Chorley Borough Council,http://statistics.data.gov.uk/id/local-authority/30UE,Parking Services,1066,Streetscene & Leisure Contracts,Signs:Provision & Maintenance,20065,Grounds Maintenance Costs,5013,Parking sign,30/08/2013,90565,"2,477.75",Revenue,Poppy Signs Ltd,21898
Chorley Borough Council,http://statistics.data.gov.uk/id/local-authority/30UE,Building Control,1090,Streetscene & Leisure Contracts,Protective Clothing,40040,"Clothing, Uniforms and Laundry",5025,Supply Regatta Benson - Black with CBC Logo 1 x xxLarge and 4 x Large ,30/08/2013,90392,269.70,Revenue,Porters PPE,59318
Chorley Borough Council,http://statistics.data.gov.uk/id/local-authority/30UE,Corporate Management,1008,Streetscene & Leisure Contracts,Vehicle Excise Duty,30012,Direct Transport Costs,5016,T481 MNB,23/08/2013,90347,225.00,Revenue,Post Office Counters Ltd,16191
Chorley Borough Council,http://statistics.data.gov.uk/id/local-authority/30UE,Service Management & Support,1009,Streetscene & Leisure Contracts,Vehicle Excise Duty,30012,Direct Transport Costs,5016,DK55 EEF,23/08/2013,90347,220.00,Revenue,Post Office Counters Ltd,16191
Chorley Borough Council,http://statistics.data.gov.uk/id/local-authority/30UE,Service Management & Support,1009,Streetscene & Leisure Contracts,Vehicle Excise Duty,30012,Direct Transport Costs,5016,DX55 CVG,23/08/2013,90347,165.00,Revenue,Post Office Counters Ltd,16191
Chorley Borough Council,http://statistics.data.gov.uk/id/local-authority/30UE,Service Management & Support,1009,Streetscene & Leisure Contracts,Vehicle Excise Duty,30012,Direct Transport Costs,5016,PN02 HRL,23/08/2013,90347,200.00,Revenue,Post Office Counters Ltd,16191
Chorley Borough Council,http://statistics.data.gov.uk/id/local-authority/30UE,Central Support Services,1009,Chief Executives Office,Photocopier Consumables,40049,"Printing, Stationery & General",5026,"Evolution Everyday A4 80gsm, Box 2500",09/08/2013,90093,454.00,Revenue,Premier Paper Group,54451
Chorley Borough Council,http://statistics.data.gov.uk/id/local-authority/30UE,Unapportionable Central OHeads,1009,Shared Service Arrangement,Refreshments,40036,Catering,5024,Water Bottles,14/08/2013,90275,424.65,Revenue,Pressure Coolers Ltd T/A Maestro International Ltd,19767
Chorley Borough Council,http://statistics.data.gov.uk/id/local-authority/30UE,Service Management & Support,1009,Streetscene & Leisure Contracts,Supplies-Grounds Maintenance,40025,"Equipment, Furniture & Materia",5023,Supply White aerosol sprays 750ml at price quoted on,30/08/2013,90100,46.32,Revenue,Rigby Taylor Ltd,16299
Chorley Borough Council,http://statistics.data.gov.uk/id/local-authority/30UE,Service Management & Support,1009,Streetscene & Leisure Contracts,Supplies-Grounds Maintenance,40025,"Equipment, Furniture & Materia",5023,Supply R8 Grass seed 20kgs sacks as quoted,30/08/2013,90100,147.86,Revenue,Rigby Taylor Ltd,16299
Chorley Borough Council,http://statistics.data.gov.uk/id/local-authority/30UE,Service Management & Support,1009,Streetscene & Leisure Contracts,Supplies-Grounds Maintenance,40025,"Equipment, Furniture & Materia",5023,Supply grass seed R2 20kgs as per your quote,30/08/2013,90100,244.72,Revenue,Rigby Taylor Ltd,16299
Chorley Borough Council,http://statistics.data.gov.uk/id/local-authority/30UE,Service Management & Support,1009,Streetscene & Leisure Contracts,Supplies-Grounds Maintenance,40025,"Equipment, Furniture & Materia",5023,Supply Amenity weed killer for Chorley Council,14/08/2013,90320,636.00,Revenue,Rigby Taylor Ltd,16299
Chorley Borough Council,http://statistics.data.gov.uk/id/local-authority/30UE,Democratic Represent and  Mgnt,1007,Health Environment & Neighbourhoods,Children's Activities,40188,Miscellaneous Expenses,5034,Delivery of Fencing coaching summer camp,23/08/2013,90479,300.00,Revenue,Rivington Park Fencing Club,53421
Chorley Borough Council,http://statistics.data.gov.uk/id/local-authority/30UE,Service Management & Support,1009,Streetscene & Leisure Contracts,Supplies-Grounds Maintenance,40025,"Equipment, Furniture & Materia",5023,Wet pour patch repairs Astley Park & Clayton Brook play areas,14/08/2013,90233,950.00,Revenue,RTC Safety Surfaces Ltd,21613
Chorley Borough Council,http://statistics.data.gov.uk/id/local-authority/30UE,Central Support Services,1009,HR & Org. Development,HR Approved Training Expenses,17001,Indirect Employee Expenses,5002,NAME REDACTED - NVQ 4 at Runshaw College ,21/08/2013,89997,"1,000.00",Revenue,Runshaw College,17997
Chorley Borough Council,http://statistics.data.gov.uk/id/local-authority/30UE,Democratic Represent and  Mgnt,1007,Streetscene & Leisure Contracts,Arts Development Initiatives,40187,Miscellaneous Expenses,5034,Funding for Big Drum Day - Event date 4th August 2013. ,09/08/2013,90173,"2,727.00",Revenue,Sambafriq,21441
Chorley Borough Council,http://statistics.data.gov.uk/id/local-authority/30UE,Service Management & Support,1009,Streetscene & Leisure Contracts,Diesel/Derv,30007,Direct Transport Costs,5016,Supply 8000 litre of white road diesel to be delivered to Bengal St depot,09/08/2013,90144,"8,961.12",Revenue,Samuel Cooke & Co Ltd,17173
Chorley Borough Council,http://statistics.data.gov.uk/id/local-authority/30UE,Service Management & Support,1009,Streetscene & Leisure Contracts,Diesel/Derv,30007,Direct Transport Costs,5016,Supply 3000 red diesel to to be delivered to Bengal St depot,09/08/2013,90145,"1,950.65",Revenue,Samuel Cooke & Co Ltd,17173
Chorley Borough Council,http://statistics.data.gov.uk/id/local-authority/30UE,Economic Development,1096,Economic Development,Grants To Other Organisations,40127,Grants and Subscriptions,5031,Starting in business grant,21/08/2013,90405,750.00,Revenue,NAME REDACTED,61005
Chorley Borough Council,http://statistics.data.gov.uk/id/local-authority/30UE,Central Support Services,1009,"Customer, ICT & Transactional",Consultants` Fees,40077,Services,5027,"ICT consultancy work - July (23 working days)To be paid on a daily basis June 13 to November 13 at 24 per hour",09/08/2013,90104,"3,306.00",Revenue,Simon Daniel Booth,57624
Chorley Borough Council,http://statistics.data.gov.uk/id/local-authority/30UE,Unapportionable Central OHeads,1009,Shared Service Arrangement,IT Software - Annual Licences,40101,Communication and Computing,5028,"Civica Authority Financials - licence, support and maintenance",28/08/2013,90521,"14,316.68",Revenue,South Ribble Borough Council,17889
Chorley Borough Council,http://statistics.data.gov.uk/id/local-authority/30UE,Central Support Services,1009,Shared Service Arrangement,Service Fees,40056,Services,5027,SRBC subscription to Lancashire County Council VAT Advisory Service,28/08/2013,90521,629.10,Revenue,South Ribble Borough Council,17889
Chorley Borough Council,http://statistics.data.gov.uk/id/local-authority/30UE,Capital,Capital,Governance,Main Contractor,3007,Capital Expenditure,Capital,White Hart Valuation No 5.,07/08/2013,90101,"64,167.89",Capital,Speakman Contractors Ltd,54838
Chorley Borough Council,http://statistics.data.gov.uk/id/local-authority/30UE,Democratic Represent and  Mgnt,1007,Governance,Other Contributions,40145,Grants and Subscriptions,5031,Donation from the Mayors Charity Appeal 2012-13,23/08/2013,90141,"2,500.00",Revenue,St Catherine`s Hospice Trading Limited,19138
Chorley Borough Council,http://statistics.data.gov.uk/id/local-authority/30UE,Service Management & Support,1009,Streetscene & Leisure Contracts,External Contractor,40198,Miscellaneous Expenses,5034,Carryout works at Yarrow depot at price quoted,07/08/2013,89988,"3,205.00",Revenue,Stafford Estates LTD,22541
Chorley Borough Council,http://statistics.data.gov.uk/id/local-authority/30UE,Central Support Services,1009,Policy & Performance,Exhibitions & Special Events,40158,Miscellaneous Expenses,5034,pa system for sports in the park,28/08/2013,90489,445.00,Revenue,Star Drive Music,16840
Chorley Borough Council,http://statistics.data.gov.uk/id/local-authority/30UE,Capital,Capital,Housing,Grants,3002,Capital Expenditure,Capital,Capital Works - Disable Facility Grant,21/08/2013,90354,"7,460.00",Capital,Stringfellow Bldg Cntrctrs Ltd,17893
Chorley Borough Council,http://statistics.data.gov.uk/id/local-authority/30UE,Capital,Capital,Housing,Grants,3002,Capital Expenditure,Capital,Capital Works - Disable Facility Grant,21/08/2013,90355,"2,920.00",Capital,Stringfellow Bldg Cntrctrs Ltd,17893
Chorley Borough Council,http://statistics.data.gov.uk/id/local-authority/30UE,Service Management & Support,1009,Streetscene & Leisure Contracts,Protective Clothing,40040,"Clothing, Uniforms and Laundry",5025,Supply Latex gloves disposable gloves Non sterile size large No Glo001L,09/08/2013,90183,68.00,Revenue,System Hygiene Ltd,16572
Chorley Borough Council,http://statistics.data.gov.uk/id/local-authority/30UE,Service Management & Support,1009,Streetscene & Leisure Contracts,Supplies & Consumables -Street Cleansing,40235,"Equipment, Furniture & Materia",5023,Supply wet wipes 176mm x 250mm 150 wipes per tub No WIP005,09/08/2013,90183,57.12,Revenue,System Hygiene Ltd,16572
Chorley Borough Council,http://statistics.data.gov.uk/id/local-authority/30UE,Service Management & Support,1009,Streetscene & Leisure Contracts,Supplies & Consumables -Street Cleansing,40235,"Equipment, Furniture & Materia",5023,Supply Pine multi purpose disinfectant No Dis 140,09/08/2013,90183,11.20,Revenue,System Hygiene Ltd,16572
Chorley Borough Council,http://statistics.data.gov.uk/id/local-authority/30UE,Service Management & Support,1009,Streetscene & Leisure Contracts,Supplies & Consumables -Street Cleansing,40235,"Equipment, Furniture & Materia",5023,Supply Evens bleach 5ltr No No  DIS103,09/08/2013,90183,6.00,Revenue,System Hygiene Ltd,16572
Chorley Borough Council,http://statistics.data.gov.uk/id/local-authority/30UE,Service Management & Support,1009,Streetscene & Leisure Contracts,Supplies & Consumables -Street Cleansing,40235,"Equipment, Furniture & Materia",5023,Supply pine gel cleaner 5litre No FLO200,09/08/2013,90183,8.96,Revenue,System Hygiene Ltd,16572
Chorley Borough Council,http://statistics.data.gov.uk/id/local-authority/30UE,Service Management & Support,1009,Streetscene & Leisure Contracts,Supplies & Consumables -Street Cleansing,40235,"Equipment, Furniture & Materia",5023,Supply Feel safe hand soap 5litre No HAN030,09/08/2013,90183,10.40,Revenue,System Hygiene Ltd,16572
Chorley Borough Council,http://statistics.data.gov.uk/id/local-authority/30UE,Service Management & Support,1009,Streetscene & Leisure Contracts,Supplies & Consumables -Street Cleansing,40235,"Equipment, Furniture & Materia",5023,Supply toilet cleaner Itr No TOi105,09/08/2013,90183,12.00,Revenue,System Hygiene Ltd,16572
Chorley Borough Council,http://statistics.data.gov.uk/id/local-authority/30UE,Service Management & Support,1009,Streetscene & Leisure Contracts,Supplies & Consumables -Street Cleansing,40235,"Equipment, Furniture & Materia",5023,Supply Jumbo  Mini toilet rolls 12 per pack No PAP100,09/08/2013,90183,20.00,Revenue,System Hygiene Ltd,16572
Chorley Borough Council,http://statistics.data.gov.uk/id/local-authority/30UE,Service Management & Support,1009,Streetscene & Leisure Contracts,Supplies & Consumables -Street Cleansing,40235,"Equipment, Furniture & Materia",5023,Supply Towel Roll Centre feed perforated 150 mtr White No PAP443,09/08/2013,90183,60.00,Revenue,System Hygiene Ltd,16572
Chorley Borough Council,http://statistics.data.gov.uk/id/local-authority/30UE,Service Management & Support,1009,Streetscene & Leisure Contracts,Vehicle Maintenance,30045,Direct Transport Costs,5016,Carryout repairs to Hooklift equipment as on invoice number C73107 work carried out,28/08/2013,90501,857.08,Revenue,T H White Ltd,18548
Chorley Borough Council,http://statistics.data.gov.uk/id/local-authority/30UE,Unapportionable Central OHeads,1009,Shared Service Arrangement,Pensions Increase Act Payments,18005,Indirect Employee Expenses,5002,Rechargeable Pension Cost first half 2013/14,02/08/2013,90075,"2,522.51",Revenue,Tameside MBC-Gmpf,17034
Chorley Borough Council,http://statistics.data.gov.uk/id/local-authority/30UE,Democratic Represent and  Mgnt,1007,Streetscene & Leisure Contracts,Grants to Voluntary Organisations,40124,Grants and Subscriptions,5031,"Tatton Community Association Grant 2013/14 Grant Payment April - September 2013. ",16/08/2013,90336,"11,000.00",Revenue,Tatton Community Association,20804
Chorley Borough Council,http://statistics.data.gov.uk/id/local-authority/30UE,Community Development,1097,Policy & Performance,Core Funding Grants,40133,Grants and Subscriptions,5031,Core Funding Project match funding 2013/14,23/08/2013,89942,"1,000.00",Revenue,The Arts Partnership,18943
Chorley Borough Council,http://statistics.data.gov.uk/id/local-authority/30UE,Community Development,1097,Health Environment & Neighbourhoods,Conferences - Staff,40120,Expenses,5030,To provide Prison Me No Way presentation & Cell Van Workshop Tatton Community Centre,21/08/2013,90003,586.00,Revenue,The No Way Trust Ltd,60565
Chorley Borough Council,http://statistics.data.gov.uk/id/local-authority/30UE,Planning Policy,1092,Planning,Consultants` Fees,40077,Services,5027,Inspector / Examination Fees for Central Lancashire Community Infrastructure Levy,21/08/2013,90300,"18,082.85",Revenue,The Planning Inspectorate,21538
Chorley Borough Council,http://statistics.data.gov.uk/id/local-authority/30UE,Central Support Services,1009,Chief Executives Office,Postages,40082,Communication and Computing,5028,Mail Collection for all Departments,21/08/2013,90364,"1,653.13",Revenue,TNT Post North Ltd,21187
Chorley Borough Council,http://statistics.data.gov.uk/id/local-authority/30UE,Unapportionable Central OHeads,1009,Chief Executives Office,Postages,40082,Communication and Computing,5028,Mail collections,21/08/2013,90365,"1,148.45",Revenue,TNT Post North Ltd,21187
Chorley Borough Council,http://statistics.data.gov.uk/id/local-authority/30UE,Unapportionable Central OHeads,1009,Chief Executives Office,Postages,40082,Communication and Computing,5028,Mail collections,21/08/2013,90366,841.53,Revenue,TNT Post North Ltd,21187
Chorley Borough Council,http://statistics.data.gov.uk/id/local-authority/30UE,Central Support Services,1009,Chief Executives Office,Postages,40082,Communication and Computing,5028,Mail Collection for all Departments,21/08/2013,90367,"1,608.35",Revenue,TNT Post North Ltd,21187
Chorley Borough Council,http://statistics.data.gov.uk/id/local-authority/30UE,Unapportionable Central OHeads,1009,Chief Executives Office,Postages,40082,Communication and Computing,5028,Mail Collection for all Departments,21/08/2013,90428,"1,031.10",Revenue,TNT Post North Ltd,21187
Chorley Borough Council,http://statistics.data.gov.uk/id/local-authority/30UE,Central Support Services,1009,Chief Executives Office,Postages,40082,Communication and Computing,5028,Mail Collection for all Departments,21/08/2013,90429,"1,138.61",Revenue,TNT Post North Ltd,21187
Chorley Borough Council,http://statistics.data.gov.uk/id/local-authority/30UE,Unapportionable Central OHeads,1009,Chief Executives Office,Postages,40082,Communication and Computing,5028,Mail Collection for all Departments,21/08/2013,90430,"1,669.25",Revenue,TNT Post North Ltd,21187
Chorley Borough Council,http://statistics.data.gov.uk/id/local-authority/30UE,Central Support Services,1009,Chief Executives Office,Postages,40082,Communication and Computing,5028,Mail Collection for all Departments,21/08/2013,90431,974.03,Revenue,TNT Post North Ltd,21187
Chorley Borough Council,http://statistics.data.gov.uk/id/local-authority/30UE,Central Support Services,1009,Chief Executives Office,Postages,40082,Communication and Computing,5028,Mail Collection for all Departments,23/08/2013,90480,"1,039.58",Revenue,TNT Post North Ltd,21187
Chorley Borough Council,http://statistics.data.gov.uk/id/local-authority/30UE,Corporate Management,1008,Governance,Furniture - Purchase,40012,"Equipment, Furniture & Materia",5023,"1 x ETNA Executive Mesh Back Chair Product code ET1HB/M/BLK",28/08/2013,90509,250.00,Revenue,TOFM Limited  T/A Tailored Office Solutions,57621
Chorley Borough Council,http://statistics.data.gov.uk/id/local-authority/30UE,Economic Development,1096,Economic Development,Grants To Other Organisations,40127,Grants and Subscriptions,5031,Shop front improvement grant,02/08/2013,90042,"9,190.00",Revenue,NAME REDACTED,57325
Chorley Borough Council,http://statistics.data.gov.uk/id/local-authority/30UE,Economic Development,1096,Economic Development,Grants To Other Organisations,40127,Grants and Subscriptions,5031,Shop floor refurb grant,14/08/2013,90272,"5,000.00",Revenue,NAME REDACTED,57325
Chorley Borough Council,http://statistics.data.gov.uk/id/local-authority/30UE,Capital,Capital,Housing,Grants,3002,Capital Expenditure,Capital,"install reconditioned Palma Vita Closomat wc/shower toilet unit number shaped plinth (to raise unit) 50mm",09/08/2013,89261,895.00,Capital,Total Hygiene,20383
Chorley Borough Council,http://statistics.data.gov.uk/id/local-authority/30UE,Capital,Capital,Housing,Grants,3002,Capital Expenditure,Capital,Capital Works - Disable Facility Grant,21/08/2013,90351,895.00,Capital,Total Hygiene,20383
Chorley Borough Council,http://statistics.data.gov.uk/id/local-authority/30UE,Unapportionable Central OHeads,1009,Shared Service Arrangement,General Subscriptions,40146,Grants and Subscriptions,5031,Annual Subscription to Spend Pro to cover Chorley and South Ribble Borough Councils April 13 to March 14,02/08/2013,90035,750.00,Revenue,Trafford Council,52972
Chorley Borough Council,http://statistics.data.gov.uk/id/local-authority/30UE,Service Management & Support,1009,Streetscene & Leisure Contracts,External Contractor,40198,Miscellaneous Expenses,5034,Carryout tree works ADDRESS REDACTED,07/08/2013,90030,80.00,Revenue,Treescape North West Ltd,17688
Chorley Borough Council,http://statistics.data.gov.uk/id/local-authority/30UE,Service Management & Support,1009,Streetscene & Leisure Contracts,External Contractor,40198,Miscellaneous Expenses,5034,Carryout tree works ADDRESS REDACTED,07/08/2013,90030,160.00,Revenue,Treescape North West Ltd,17688
Chorley Borough Council,http://statistics.data.gov.uk/id/local-authority/30UE,Service Management & Support,1009,Streetscene & Leisure Contracts,External Contractor,40198,Miscellaneous Expenses,5034,Carryout tree works ADDRESS REDACTED,07/08/2013,90030,160.00,Revenue,Treescape North West Ltd,17688
Chorley Borough Council,http://statistics.data.gov.uk/id/local-authority/30UE,Service Management & Support,1009,Streetscene & Leisure Contracts,External Contractor,40198,Miscellaneous Expenses,5034,Carryout tree works ADDRESS REDACTED,07/08/2013,90030,80.00,Revenue,Treescape North West Ltd,17688
Chorley Borough Council,http://statistics.data.gov.uk/id/local-authority/30UE,Service Management & Support,1009,Streetscene & Leisure Contracts,External Contractor,40198,Miscellaneous Expenses,5034,Carryout tree works ADDRESS REDACTED,07/08/2013,90030,80.00,Revenue,Treescape North West Ltd,17688
Chorley Borough Council,http://statistics.data.gov.uk/id/local-authority/30UE,Service Management & Support,1009,Streetscene & Leisure Contracts,External Contractor,40198,Miscellaneous Expenses,5034,Carryout tree works ADDRESS REDACTED,07/08/2013,90030,160.00,Revenue,Treescape North West Ltd,17688
Chorley Borough Council,http://statistics.data.gov.uk/id/local-authority/30UE,Service Management & Support,1009,Streetscene & Leisure Contracts,External Contractor,40198,Miscellaneous Expenses,5034,Carryout tree works ADDRESS REDACTED,07/08/2013,90030,80.00,Revenue,Treescape North West Ltd,17688
Chorley Borough Council,http://statistics.data.gov.uk/id/local-authority/30UE,Service Management & Support,1009,Streetscene & Leisure Contracts,External Contractor,40198,Miscellaneous Expenses,5034,Carryout tree works ADDRESS REDACTED,07/08/2013,90030,120.00,Revenue,Treescape North West Ltd,17688
Chorley Borough Council,http://statistics.data.gov.uk/id/local-authority/30UE,Service Management & Support,1009,Streetscene & Leisure Contracts,External Contractor,40198,Miscellaneous Expenses,5034,Carryout tree works ADDRESS REDACTED,07/08/2013,90030,720.00,Revenue,Treescape North West Ltd,17688
Chorley Borough Council,http://statistics.data.gov.uk/id/local-authority/30UE,Service Management & Support,1009,Streetscene & Leisure Contracts,External Contractor,40198,Miscellaneous Expenses,5034,2 Days tree works for Chorley Council as requested,07/08/2013,90030,840.00,Revenue,Treescape North West Ltd,17688
Chorley Borough Council,http://statistics.data.gov.uk/id/local-authority/30UE,Service Management & Support,1009,Streetscene & Leisure Contracts,Tools & Equipment - Maintenance,40005,"Equipment, Furniture & Materia",5023,"Roberine 90002 Reg",28/08/2013,90454,"3,250.00",Revenue,Turner Groundscare,48502
Chorley Borough Council,http://statistics.data.gov.uk/id/local-authority/30UE,Service Management & Support,1009,Streetscene & Leisure Contracts,Petrol,30005,Direct Transport Costs,5016,Petrol,02/08/2013,90046,178.94,Revenue,Uk Fuels Ltd,57996
Chorley Borough Council,http://statistics.data.gov.uk/id/local-authority/30UE,Community Safety Crime Reduct,1043,Streetscene & Leisure Contracts,Petrol,30005,Direct Transport Costs,5016,Petrol,02/08/2013,90046,44.21,Revenue,Uk Fuels Ltd,57996
Chorley Borough Council,http://statistics.data.gov.uk/id/local-authority/30UE,Service Management & Support,1009,Streetscene & Leisure Contracts,Petrol,30005,Direct Transport Costs,5016,Petrol,02/08/2013,90046,124.75,Revenue,Uk Fuels Ltd,57996
Chorley Borough Council,http://statistics.data.gov.uk/id/local-authority/30UE,Service Management & Support,1009,Streetscene & Leisure Contracts,Petrol,30005,Direct Transport Costs,5016,Petrol,02/08/2013,90046,137.69,Revenue,Uk Fuels Ltd,57996
Chorley Borough Council,http://statistics.data.gov.uk/id/local-authority/30UE,Service Management & Support,1009,Streetscene & Leisure Contracts,Petrol,30005,Direct Transport Costs,5016,Petrol,02/08/2013,90046,137.08,Revenue,Uk Fuels Ltd,57996
Chorley Borough Council,http://statistics.data.gov.uk/id/local-authority/30UE,Service Management & Support,1009,Streetscene & Leisure Contracts,Petrol,30005,Direct Transport Costs,5016,Petrol,02/08/2013,90046,63.79,Revenue,Uk Fuels Ltd,57996
Chorley Borough Council,http://statistics.data.gov.uk/id/local-authority/30UE,Democratic Represent and  Mgnt,1007,Streetscene & Leisure Contracts,Use Of Transport - Mayoral Car,30015,Transport Recharges,5017,Petrol,02/08/2013,90046,59.70,Revenue,Uk Fuels Ltd,57996
Chorley Borough Council,http://statistics.data.gov.uk/id/local-authority/30UE,Community Safety Crime Reduct,1043,Streetscene & Leisure Contracts,Petrol,30005,Direct Transport Costs,5016,Petrol,02/08/2013,90046,46.70,Revenue,Uk Fuels Ltd,57996
Chorley Borough Council,http://statistics.data.gov.uk/id/local-authority/30UE,Service Management & Support,1009,Streetscene & Leisure Contracts,Petrol,30005,Direct Transport Costs,5016,Petrol,02/08/2013,90046,182.18,Revenue,Uk Fuels Ltd,57996
Chorley Borough Council,http://statistics.data.gov.uk/id/local-authority/30UE,Service Management & Support,1009,Streetscene & Leisure Contracts,Water - Metered Supplies,20022,Water Services,5009,Standpipe,21/08/2013,89956,457.47,Revenue,United Utilites (Standpipe Invoices Only),20701
Chorley Borough Council,http://statistics.data.gov.uk/id/local-authority/30UE,Democratic Represent and  Mgnt,1007,Streetscene & Leisure Contracts,Water - Metered Supplies,20022,Water Services,5009,Tatton Rec Grnd,28/08/2013,90358,707.29,Revenue,United Utilities Water Plc,17926
Chorley Borough Council,http://statistics.data.gov.uk/id/local-authority/30UE,Democratic Represent and  Mgnt,1007,Streetscene & Leisure Contracts,Water - Metered Supplies,20022,Water Services,5009,Astley Hall,28/08/2013,90359,337.46,Revenue,United Utilities Water Plc,17926
Chorley Borough Council,http://statistics.data.gov.uk/id/local-authority/30UE,Homelessness,1075,Housing,Water - Unmetered Supply,20023,Water Services,5009,Cotswold House,28/08/2013,90432,"1,479.55",Revenue,United Utilities Water Plc,17926
Chorley Borough Council,http://statistics.data.gov.uk/id/local-authority/30UE,Homelessness,1075,Housing,Water - Metered Supplies,20022,Water Services,5009,Cotswold House,30/08/2013,90563,855.38,Revenue,United Utilities Water Plc,17926
Chorley Borough Council,http://statistics.data.gov.uk/id/local-authority/30UE,Unapportionable Central OHeads,1009,Planning,Consultants` Fees,40077,Services,5027,Technical Support Officer (Planning) ,02/08/2013,89848,"1,966.40",Revenue,Urban Vision Partnership Ltd,21181
Chorley Borough Council,http://statistics.data.gov.uk/id/local-authority/30UE,Unapportionable Central OHeads,1009,Planning,Consultants` Fees,40077,Services,5027,Technical Support Officer (Planning),21/08/2013,90424,"2,703.80",Revenue,Urban Vision Partnership Ltd,21181
Chorley Borough Council,http://statistics.data.gov.uk/id/local-authority/30UE,Democratic Represent and  Mgnt,1007,Health Environment & Neighbourhoods,Children's Activities,40188,Miscellaneous Expenses,5034,Delivery of Birds of Prey during summer activity programme,30/08/2013,90510,270.00,Revenue,V Radcliffe,16817
Chorley Borough Council,http://statistics.data.gov.uk/id/local-authority/30UE,Central Support Services,1009,Governance,Agency Staff,13000,Direct Employee Expenses,5001,Locum Solicitor Approximately 1450.00 per week.,07/08/2013,90103,"1,458.91",Revenue,VennGroup,21065
Chorley Borough Council,http://statistics.data.gov.uk/id/local-authority/30UE,Waste Collection,1050,Streetscene & Leisure Contracts,Unitary Payment(S),50009,Private Contractors,5042,Provision of refuse and recycling collection and ancillary services for 2013/14,02/08/2013,90039,"263,668.47",Revenue,Veolia ES (UK) Ltd,20748
Chorley Borough Council,http://statistics.data.gov.uk/id/local-authority/30UE,Corporate Management,1008,Streetscene & Leisure Contracts,Unitary Payment(S),50009,Private Contractors,5042,Provision of refuse and recycling collection and ancillary services for 2013/14,21/08/2013,90385,"263,668.47",Revenue,Veolia ES (UK) Ltd,20748
Chorley Borough Council,http://statistics.data.gov.uk/id/local-authority/30UE,Central Support Services,1009,"Customer, ICT & Transactional",Network Line Rental,40248,Communication and Computing,5028,Rental charges,21/08/2013,90292,"2,460.00",Revenue,Virgin Media Payments Ltd,17632
Chorley Borough Council,http://statistics.data.gov.uk/id/local-authority/30UE,Culture & Heritage,1036,Streetscene & Leisure Contracts,Consultants` Fees,40077,Services,5027,Curatorial Consultancy fees for July 2013. 699.96 (839.96 including VAT),16/08/2013,90281,699.96,Revenue,Whittle and Draper Fine Art,52271
Chorley Borough Council,http://statistics.data.gov.uk/id/local-authority/30UE,Unapportionable Central OHeads,1009,Policy & Performance,Exhibitions & Special Events,40158,Miscellaneous Expenses,5034,Toilet hire for summer events.,28/08/2013,90425,250.00,Revenue,William G Search Limited,20793
Chorley Borough Council,http://statistics.data.gov.uk/id/local-authority/30UE,Corporate Management,1008,Streetscene & Leisure Contracts,Vehicle Maintenance,30045,Direct Transport Costs,5016,Supply and fit new clutch assembly as required for MF06NYA,14/08/2013,90236,615.00,Revenue,Wrekamendid Services Ltd,21188
Chorley Borough Council,http://statistics.data.gov.uk/id/local-authority/30UE,Capital,Capital,Streetscene & Leisure Contracts,Surveyors Fees,3021,Capital Expenditure,Capital,"Quantity Surveying Services.Provision of  Pre-Contract services including Preparing Tender Documen",23/08/2013,90473,"1,327.50",Capital,Youdan Briggs Limited,55653
Chorley Borough Council,http://statistics.data.gov.uk/id/local-authority/30UE,Economic Development,1096,Economic Development,Grants To Other Organisations,40127,Grants and Subscriptions,5031,"Shop front improvement grant, first tranche payment",28/08/2013,90447,"5,241.25",Revenue,Zen Hair,60836
